Workbook

Sheet Questions
B2: Question 1
D3: Go to the Inputs page and compute the Value/Earnings Ratio for the No Change Case
D5: What is the P/E ratio in the Base Case | I5: 15 | L5: 17.14285714
B7: Question 2
C9: Increase the growth rate using the spinner box to 3%.
C10: When you increase the growth rate:
D11: a. The P/E Rato Increases for all of the companies
D12: b. The P/E Increases for companies that earn returns below the cost of capital
D13: c. The P/E Decreases for companies that earn returns below the cost of capital
D14: d. The P/E Decreases for companies that earn returns above the cost of capital
D16: Answer (lower case) | H16: c | J16: c
B18: Question 3
C20: Go to the Model Sheet
C21: Fill in the equity balance sheet and the value of dividends
C23: The computed value per share is
B25: Question 4
C27: Which of the following are true with respect the value simulation versus the value formula
C29: a. The value for companies that have increasing ROI is higher than the value formula
C30: b. The value for companies that have decreasing ROI is lower than the value driver formula
C31: c. If companies are earning the same rate of return as cost of capital then there is no difference in the value formulas
C32: d. All of the above are true
D34: Answer (lower case) | H34: c | J34: c
B36: Question 5
C38: Which of the following is true about screening
C40: a. Companies with low P/E ratios are better targets
C41: b. Companies with high P/E ratios and potential increase in return from M&A are better targets
C42: c. Companies with high P/E Ratios and potential high potential growth from M&A are better targets
C43: d. Companies with low P/E Ratios and potential incrase in return from M&A are better targets
C44: e. Companies with low P/E Ratios with low return and high growth can be good targets
C45: f. d and e
D47: Answer (lower case) | H47: c | J47: c
B49: Question 6 | H49: i
C51: Go to the Financial Analysis Blank File
C53: The yahoo finance ticker for Canadian Pacific and Norfolk and Southern
C55: The Canadian Pacific Ticker is
C56: The Norfolk and Southern Ticker is
C58: The Market Watch url for Canadian Pacific Balance Sheet and Norfolk and Southern Balance Sheet
C60: The Canadian Pacific Ticker is
C61: The Norfolk and Southern Ticker is

Sheet Inputs
B2: Scenarios
G3: 9 | I3: =AI6 -> Increasing Return 4.50% to 7.00%
M4: ="Changing Return Cases - Growth "&TEXT(G8,"##.00%")&" Cost of Capital "&TEXT(G9,"##.00%") -> Changing Return Cases - Growth 1.00% Cost of Capital 6.00%
H5: Constant Return Cases
G6: Base | H6: High Return | I6: Low Return | J6: Return =COC | K6: Return below COC | M6: ="Reducing Return "&TEXT(M11,"##.00%")&" to "&TEXT(M7,"##.00%") -> Reducing Return 7.00% to 6.50% | N6: ="Reducing Return "&TEXT(N11,"##.00%")&" to "&TEXT(N7,"##.00%") -> Reducing Return 8.00% to 7.00% | O6: ="Increasing Return "&TEXT(O11,"##.00%")&" to "&TEXT(O7,"##.00%") -> Increasing Return 4.50% to 7.00% | P6: =J6 -> Return =COC | Q6: ="Increasing Return "&TEXT(Q11,"##.00%")&" to "&TEXT(Q7,"##.00%") -> Increasing Return 3.00% to 7.00% | AI6: =INDEX(G6:AF6,$G$3) -> Increasing Return 4.50% to 7.00%
D7: ROIC | G7: 0.07 | H7: 0.08 | I7: 0.065 | J7: =J9 -> 0.06 | K7: 0.03 | M7: 0.065 | N7: 0.07 | O7: =N7 -> 0.07 | P7: =P9 -> 0.06 | Q7: =O7 -> 0.07 | AI7: =INDEX(G7:AF7,$G$3) -> 0.07
D8: Growth | E8: 6 | G8: =(E8-5)/100 -> 0.01 | H8: =G8 -> 0.01 | I8: =H8 -> 0.01 | J8: 0.01 | K8: =I8 -> 0.01 | M8: =G8 -> 0.01 | N8: =M8 -> 0.01 | O8: =N8 -> 0.01 | P8: 0.01 | Q8: =O8 -> 0.01 | AI8: =INDEX(G8:AF8,$G$3) -> 0.01
D9: Cost of Capital | E9: 6 | G9: =$E$9/100 -> 0.06 | H9: =$E$9/100 -> 0.06 | I9: 0.06 | J9: 0.06 | K9: 0.06 | M9: 0.06 | N9: 0.06 | O9: 0.06 | P9: 0.06 | Q9: 0.06 | AI9: =INDEX(G9:AF9,$G$3) -> 0.06
D11: Current Return | G11: =G7 -> 0.07 | H11: =H7 -> 0.08 | I11: =I7 -> 0.065 | J11: 0.06 | K11: 0.03 | M11: 0.07 | N11: 0.08 | O11: 0.045 | P11: =P9 -> 0.06 | Q11: 0.03 | AI11: =INDEX(G11:AF11,$G$3) -> 0.045
D12: Future Return | G12: =G11 -> 0.07 | H12: =H7 -> 0.08 | I12: =I7 -> 0.065 | J12: 0.06 | K12: 0.03 | M12: 0.065 | N12: 0.07 | O12: =O7 -> 0.07 | P12: 0.06 | Q12: 0.07 | AI12: =INDEX(G12:AF12,$G$3) -> 0.07
D14: Book Value | G14: 1000 | H14: 1000 | I14: 1000 | J14: 1000 | K14: 1000 | M14: 1000 | N14: 1000 | O14: 1000 | P14: 1000 | Q14: 1000 | AI14: =INDEX(G14:AF14,$G$3) -> 1000
D15: Initial Income - BV x Current Return | AI15: =INDEX(G15:AF15,$G$3) -> 0
D17: Value From Driver Formula | AI17: =INDEX(G17:AF17,$G$3) -> 0
D18: Value/Earnings (P/E Ratio) | AI18: =INDEX(G18:AF18,$G$3) -> 0
D20: Transition Period | G20: 5 | H20: =G20 -> 5 | I20: =H20 -> 5 | J20: 5 | K20: 5 | M20: =K20 -> 5 | N20: =M20 -> 5 | O20: =N20 -> 5 | P20: 5 | Q20: 5 | AI20: =INDEX(G20:AF20,$G$3) -> 5
G21: =G6 -> Base | H21: =H6 -> High Return | I21: Low Return | J21: Return =COC | K21: Return below COC | M21: 7 | N21: 8 | O21: 9 | P21: 10 | Q21: 11
D22: Corrected Value | F22: 0 | G22: =G31 -> 16.66666667 | H22: =H31 -> 16.66666667 | I22: 16.66666667 | J22: 16.66666667 | K22: 16.66666667 | L22: =Model!E26 -> 0 | M22: 1108.86913 | N22: 1217.529416 | O22: 1151.140468 | P22: 1000 | Q22: 1116.274473
D23: Corrected P/E | F23: 0.02 | G23: =G32 -> 17.85714286 | H23: 18.75 | I23: 17.30769231 | J23: 16.66666667 | K23: 8.333333333 | L23: =Model!E29 ->  | M23: 16.07752486 | N23: 15.63103966 | O23: 23.41740153 | P23: 16.66666667 | Q23: 31.40901968
F24: -0.02 | G24: 16.07142857 | H24: 15.625 | I24: 16.34615385 | J24: 16.66666667 | K24: 20.83333333
M26: =M6 -> Reducing Return 7.00% to 6.50% | N26: =N6 -> Reducing Return 8.00% to 7.00% | O26: =O6 -> Increasing Return 4.50% to 7.00% | P26: =P6 -> Return =COC | Q26: =Q6 -> Increasing Return 3.00% to 7.00%
L27: P/E Correct | M27: =M23 -> 16.07752486 | N27: =N23 -> 15.63103966 | O27: =O23 -> 23.41740153 | P27: =P23 -> 16.66666667 | Q27: =Q23 -> 31.40901968
L28: P/E Formula | M28: =M18 -> 0 | N28: =N18 -> 0 | O28: =O18 -> 0 | P28: =P18 -> 0 | Q28: =Q18 -> 0
G30: =G18 -> 0 | H30: =H18 -> 0 | I30: 0 | J30: 0 | K30: 0
E31: =(F31-5)/100 -> 0 | F31: 5 | G31: 16.66666667 | H31: 16.66666667 | I31: 16.66666667 | J31: 16.66666667 | K31: 16.66666667
D32: Growth | E32: =(F32-5)/100 -> 0.02 | F32: 7 | G32: 17.85714286 | H32: 18.75 | I32: 17.30769231 | J32: 16.66666667 | K32: 8.333333333
E33: -0.02 | F33: 3 | G33: 16.07142857 | H33: 15.625 | I33: 16.34615385 | J33: 16.66666667 | K33: 20.83333333
G42: 70 | H42: 80 | I42: 65 | J42: 60 | K42: 30 | M42: 70 | N42: 80 | O42: 45 | P42: 60 | Q42: 30
G43: 1200 | H43: 1400 | I43: 1100 | J43: 1000 | K43: 400 | M43: 1184.615385 | N43: 1371.428571 | O43: 771.4285714 | P43: 1000 | Q43: 514.2857143
G44: 17.14285714 | H44: 17.5 | I44: 16.92307692 | J44: 16.66666667 | K44: 13.33333333 | M44: 16.92307692 | N44: 17.14285714 | O44: 17.14285714 | P44: 16.66666667 | Q44: 17.14285714
D63: s

Sheet Model
D2: Scenario | E2: =Inputs!AI6 -> Increasing Return 4.50% to 7.00%
B4: Inputs | E4: 0 | F4: =Inputs!AI20 -> 5
D5: Return | E5: =Inputs!AI11 -> 0.045 | F5: =Inputs!AI12 -> 0.07
D6: Growth | E6: =Inputs!AI8 -> 0.01 | F6: =E6 -> 0.01 | I6: You can copy with Shift, CNTL, --> and then CNTL, R
D7: Payout | E7: =(1-E6/E5) -> 0.7777777778 | F7: =(1-F6/F5) -> 0.8571428571 | G7: =_xlfn.FORMULATEXT(E7) -> =(1-E6/E5)
D8: Cost of Capital | E8: =Inputs!AI9 -> 0.06
B10: Model | E10: 0 | F10: 1 | G10: 2 | H10: 3 | I10: 4 | J10: 5 | K10: 6 | L10: 7 | M10: 8 | N10: 9 | O10: 10 | P10: 11 | Q10: 12 | R10: 13 | S10: 14 | T10: 15 | U10: 16 | V10: 17 | W10: 18 | X10: 19 | Y10: 20 | Z10: 21 | AA10: 22 | AB10: 23 | AC10: 24 | AD10: 25 | AE10: 26 | AF10: 27 | AG10: 28 | AH10: 29 | AI10: 30 | AJ10: 31 | AK10: 32 | AL10: 33 | AM10: 34 | AN10: 35 | AO10: 36 | AP10: 37 | AQ10: 38 | AR10: 39 | AS10: 40 | AT10: 41 | AU10: 42 | AV10: 43 | AW10: 44 | AX10: 45 | AY10: 46 | AZ10: 47 | BA10: 48 | BB10: 49 | BC10: 50 | BD10: 51 | BE10: 52 | BF10: 53 | BG10: 54 | BH10: 55 | BI10: 56 | BJ10: 57 | BK10: 58 | BL10: 59 | BM10: 60 | BN10: 61 | BO10: 62 | BP10: 63 | BQ10: 64 | BR10: 65 | BS10: 66 | BT10: 67 | BU10: 68 | BV10: 69 | BW10: 70 | BX10: 71 | BY10: 72 | BZ10: 73 | CA10: 74 | CB10: 75 | CC10: 76 | CD10: 77 | CE10: 78 | CF10: 79 | CG10: 80 | CH10: 81 | CI10: 82 | CJ10: 83 | CK10: 84 | CL10: 85 | CM10: 86 | CN10: 87 | CO10: 88 | CP10: 89 | CQ10: 90 | CR10: 91 | CS10: 92 | CT10: 93 | CU10: 94 | CV10: 95 | CW10: 96 | CX10: 97 | CY10: 98 | CZ10: 99 | DA10: 100 | DB10: 101 | DC10: 102 | DD10: 103 | DE10: 104 | DF10: 105 | DG10: 106 | DH10: 107 | DI10: 108 | DJ10: 109 | DK10: 110 | DL10: 111 | DM10: 112 | DN10: 113 | DO10: 114 | DP10: 115 | DQ10: 116 | DR10: 117 | DS10: 118 | DT10: 119 | DU10: 120 | DV10: 121 | DW10: 122 | DX10: 123 | DY10: 124 | DZ10: 125 | EA10: 126 | EB10: 127 | EC10: 128 | ED10: 129 | EE10: 130 | EF10: 131 | EG10: 132 | EH10: 133 | EI10: 134 | EJ10: 135 | EK10: 136 | EL10: 137 | EM10: 138 | EN10: 139 | EO10: 140 | EP10: 141 | EQ10: 142 | ER10: 143 | ES10: 144 | ET10: 145 | EU10: 146 | EV10: 147 | EW10: 148 | EX10: 149 | EY10: 150 | EZ10: 151 | FA10: 152 | FB10: 153 | FC10: 154 | FD10: 155 | FE10: 156 | FF10: 157 | FG10: 158 | FH10: 159 | FI10: 160 | FJ10: 161 | FK10: 162 | FL10: 163 | FM10: 164 | FN10: 165 | FO10: 166 | FP10: 167 | FQ10: 168 | FR10: 169 | FS10: 170 | FT10: 171 | FU10: 172 | FV10: 173 | FW10: 174 | FX10: 175 | FY10: 176 | FZ10: 177 | GA10: 178 | GB10: 179 | GC10: 180 | GD10: 181 | GE10: 182 | GF10: 183 | GG10: 184 | GH10: 185 | GI10: 186 | GJ10: 187 | GK10: 188 | GL10: 189 | GM10: 190 | GN10: 191 | GO10: 192 | GP10: 193 | GQ10: 194 | GR10: 195 | GS10: 196 | GT10: 197 | GU10: 198 | GV10: 199 | GW10: 200 | GX10: 201 | GY10: 202 | GZ10: 203 | HA10: 204 | HB10: 205 | HC10: 206 | HD10: 207 | HE10: 208 | HF10: 209 | HG10: 210 | HH10: 211 | HI10: 212 | HJ10: 213 | HK10: 214 | HL10: 215 | HM10: 216 | HN10: 217 | HO10: 218 | HP10: 219 | HQ10: 220 | HR10: 221 | HS10: 222 | HT10: 223 | HU10: 224 | HV10: 225 | HW10: 226 | HX10: 227 | HY10: 228 | HZ10: 229 | IA10: 230 | IB10: 231 | IC10: 232 | ID10: 233 | IE10: 234 | IF10: 235 | IG10: 236 | IH10: 237 | II10: 238 | IJ10: 239 | IK10: 240 | IL10: 241 | IM10: 242 | IN10: 243 | IO10: 244 | IP10: 245 | IQ10: 246 | IR10: 247 | IS10: 248 | IT10: 249 | IU10: 250 | IV10: 251 | IW10: 252 | IX10: 253 | IY10: 254 | IZ10: 255 | JA10: 256 | JB10: 257 | JC10: 258 | JD10: 259 | JE10: 260 | JF10: 261 | JG10: 262 | JH10: 263 | JI10: 264 | JJ10: 265 | JK10: 266 | JL10: 267 | JM10: 268 | JN10: 269 | JO10: 270 | JP10: 271 | JQ10: 272 | JR10: 273 | JS10: 274 | JT10: 275 | JU10: 276 | JV10: 277 | JW10: 278 | JX10: 279 | JY10: 280 | JZ10: 281 | KA10: 282 | KB10: 283 | KC10: 284 | KD10: 285 | KE10: 286 | KF10: 287 | KG10: 288 | KH10: 289 | KI10: 290 | KJ10: 291 | KK10: 292 | KL10: 293 | KM10: 294 | KN10: 295 | KO10: 296 | KP10: 297 | KQ10: 298 | KR10: 299 | KS10: 300 | KT10: 301 | KU10: 302 | KV10: 303 | KW10: 304 | KX10: 305 | KY10: 306 | KZ10: 307 | LA10: 308 | LB10: 309 | LC10: 310 | LD10: 311 | LE10: 312 | LF10: 313 | LG10: 314 | LH10: 315 | LI10: 316 | LJ10: 317 | LK10: 318 | LL10: 319 | LM10: 320 | LN10: 321 | LO10: 322 | LP10: 323 | LQ10: 324 | LR10: 325 | LS10: 326 | LT10: 327 | LU10: 328 | LV10: 329 | LW10: 330 | LX10: 331 | LY10: 332 | LZ10: 333 | MA10: 334 | MB10: 335 | MC10: 336 | MD10: 337 | ME10: 338 | MF10: 339 | MG10: 340 | MH10: 341 | MI10: 342 | MJ10: 343 | MK10: 344 | ML10: 345 | MM10: 346 | MN10: 347 | MO10: 348 | MP10: 349 | MQ10: 350 | MR10: 351 | MS10: 352 | MT10: 353 | MU10: 354 | MV10: 355 | MW10: 356 | MX10: 357 | MY10: 358 | MZ10: 359 | NA10: 360 | NB10: 361 | NC10: 362 | ND10: 363 | NE10: 364 | NF10: 365 | NG10: 366 | NH10: 367 | NI10: 368 | NJ10: 369 | NK10: 370 | NL10: 371 | NM10: 372 | NN10: 373 | NO10: 374 | NP10: 375 | NQ10: 376 | NR10: 377 | NS10: 378 | NT10: 379 | NU10: 380 | NV10: 381 | NW10: 382 | NX10: 383 | NY10: 384 | NZ10: 385 | OA10: 386 | OB10: 387 | OC10: 388 | OD10: 389 | OE10: 390 | OF10: 391 | OG10: 392 | OH10: 393 | OI10: 394 | OJ10: 395 | OK10: 396 | OL10: 397 | OM10: 398 | ON10: 399 | OO10: 400 | OP10: 401 | OQ10: 402 | OR10: 403 | OS10: 404 | OT10: 405 | OU10: 406 | OV10: 407 | OW10: 408 | OX10: 409 | OY10: 410 | OZ10: 411 | PA10: 412 | PB10: 413 | PC10: 414 | PD10: 415 | PE10: 416 | PF10: 417 | PG10: 418 | PH10: 419 | PI10: 420 | PJ10: 421 | PK10: 422 | PL10: 423 | PM10: 424 | PN10: 425 | PO10: 426 | PP10: 427 | PQ10: 428 | PR10: 429 | PS10: 430 | PT10: 431 | PU10: 432 | PV10: 433 | PW10: 434 | PX10: 435 | PY10: 436 | PZ10: 437 | QA10: 438 | QB10: 439 | QC10: 440 | QD10: 441 | QE10: 442 | QF10: 443 | QG10: 444 | QH10: 445 | QI10: 446 | QJ10: 447 | QK10: 448 | QL10: 449 | QM10: 450 | QN10: 451 | QO10: 452 | QP10: 453 | QQ10: 454 | QR10: 455 | QS10: 456 | QT10: 457 | QU10: 458 | QV10: 459 | QW10: 460 | QX10: 461 | QY10: 462 | QZ10: 463 | RA10: 464 | RB10: 465 | RC10: 466 | RD10: 467 | RE10: 468 | RF10: 469 | RG10: 470 | RH10: 471 | RI10: 472 | RJ10: 473 | RK10: 474 | RL10: 475 | RM10: 476 | RN10: 477 | RO10: 478 | RP10: 479 | RQ10: 480 | RR10: 481 | RS10: 482 | RT10: 483 | RU10: 484 | RV10: 485 | RW10: 486 | RX10: 487 | RY10: 488 | RZ10: 489 | SA10: 490 | SB10: 491 | SC10: 492 | SD10: 493 | SE10: 494 | SF10: 495 | SG10: 496 | SH10: 497 | SI10: 498 | SJ10: 499 | SK10: 500
D11: Return | E11: =interpolate_look_up(E10,4:4,5:5) -> 0.045 | F11: =interpolate_look_up(F10,4:4,5:5) -> 0.04915748089 | G11: =interpolate_look_up(G10,4:4,5:5) -> 0.05369906505 | H11: =interpolate_look_up(H10,4:4,5:5) -> 0.05866023919 | I11: =interpolate_look_up(I10,4:4,5:5) -> 0.0640797686 | J11: =interpolate_look_up(J10,4:4,5:5) -> 0.07 | K11: =interpolate_look_up(K10,4:4,5:5) -> 0.07 | L11: =interpolate_look_up(L10,4:4,5:5) -> 0.07 | M11: =interpolate_look_up(M10,4:4,5:5) -> 0.07 | N11: =interpolate_look_up(N10,4:4,5:5) -> 0.07 | O11: =interpolate_look_up(O10,4:4,5:5) -> 0.07 | P11: =interpolate_look_up(P10,4:4,5:5) -> 0.07 | Q11: =interpolate_look_up(Q10,4:4,5:5) -> 0.07 | R11: =interpolate_look_up(R10,4:4,5:5) -> 0.07 | S11: =interpolate_look_up(S10,4:4,5:5) -> 0.07 | T11: =interpolate_look_up(T10,4:4,5:5) -> 0.07 | U11: =interpolate_look_up(U10,4:4,5:5) -> 0.07 | V11: =interpolate_look_up(V10,4:4,5:5) -> 0.07 | W11: =interpolate_look_up(W10,4:4,5:5) -> 0.07 | X11: =interpolate_look_up(X10,4:4,5:5) -> 0.07 | Y11: =interpolate_look_up(Y10,4:4,5:5) -> 0.07 | Z11: =interpolate_look_up(Z10,4:4,5:5) -> 0.07 | AA11: =interpolate_look_up(AA10,4:4,5:5) -> 0.07 | AB11: =interpolate_look_up(AB10,4:4,5:5) -> 0.07 | AC11: =interpolate_look_up(AC10,4:4,5:5) -> 0.07 | AD11: =interpolate_look_up(AD10,4:4,5:5) -> 0.07 | AE11: =interpolate_look_up(AE10,4:4,5:5) -> 0.07 | AF11: =interpolate_look_up(AF10,4:4,5:5) -> 0.07 | AG11: =interpolate_look_up(AG10,4:4,5:5) -> 0.07 | AH11: =interpolate_look_up(AH10,4:4,5:5) -> 0.07 | AI11: =interpolate_look_up(AI10,4:4,5:5) -> 0.07 | AJ11: =interpolate_look_up(AJ10,4:4,5:5) -> 0.07 | AK11: =interpolate_look_up(AK10,4:4,5:5) -> 0.07 | AL11: =interpolate_look_up(AL10,4:4,5:5) -> 0.07 | AM11: =interpolate_look_up(AM10,4:4,5:5) -> 0.07 | AN11: =interpolate_look_up(AN10,4:4,5:5) -> 0.07 | AO11: =interpolate_look_up(AO10,4:4,5:5) -> 0.07 | AP11: =interpolate_look_up(AP10,4:4,5:5) -> 0.07 | AQ11: =interpolate_look_up(AQ10,4:4,5:5) -> 0.07 | AR11: =interpolate_look_up(AR10,4:4,5:5) -> 0.07 | AS11: =interpolate_look_up(AS10,4:4,5:5) -> 0.07 | AT11: =interpolate_look_up(AT10,4:4,5:5) -> 0.07 | AU11: =interpolate_look_up(AU10,4:4,5:5) -> 0.07 | AV11: =interpolate_look_up(AV10,4:4,5:5) -> 0.07 | AW11: =interpolate_look_up(AW10,4:4,5:5) -> 0.07 | AX11: =interpolate_look_up(AX10,4:4,5:5) -> 0.07 | AY11: =interpolate_look_up(AY10,4:4,5:5) -> 0.07 | AZ11: =interpolate_look_up(AZ10,4:4,5:5) -> 0.07 | BA11: =interpolate_look_up(BA10,4:4,5:5) -> 0.07 | BB11: =interpolate_look_up(BB10,4:4,5:5) -> 0.07 | BC11: =interpolate_look_up(BC10,4:4,5:5) -> 0.07 | BD11: =interpolate_look_up(BD10,4:4,5:5) -> 0.07 | BE11: =interpolate_look_up(BE10,4:4,5:5) -> 0.07 | BF11: =interpolate_look_up(BF10,4:4,5:5) -> 0.07 | BG11: =interpolate_look_up(BG10,4:4,5:5) -> 0.07 | BH11: =interpolate_look_up(BH10,4:4,5:5) -> 0.07 | BI11: =interpolate_look_up(BI10,4:4,5:5) -> 0.07 | BJ11: =interpolate_look_up(BJ10,4:4,5:5) -> 0.07 | BK11: =interpolate_look_up(BK10,4:4,5:5) -> 0.07 | BL11: =interpolate_look_up(BL10,4:4,5:5) -> 0.07 | BM11: =interpolate_look_up(BM10,4:4,5:5) -> 0.07 | BN11: =interpolate_look_up(BN10,4:4,5:5) -> 0.07 | BO11: =interpolate_look_up(BO10,4:4,5:5) -> 0.07 | BP11: =interpolate_look_up(BP10,4:4,5:5) -> 0.07 | BQ11: =interpolate_look_up(BQ10,4:4,5:5) -> 0.07 | BR11: =interpolate_look_up(BR10,4:4,5:5) -> 0.07 | BS11: =interpolate_look_up(BS10,4:4,5:5) -> 0.07 | BT11: =interpolate_look_up(BT10,4:4,5:5) -> 0.07 | BU11: =interpolate_look_up(BU10,4:4,5:5) -> 0.07 | BV11: =interpolate_look_up(BV10,4:4,5:5) -> 0.07 | BW11: =interpolate_look_up(BW10,4:4,5:5) -> 0.07 | BX11: =interpolate_look_up(BX10,4:4,5:5) -> 0.07 | BY11: =interpolate_look_up(BY10,4:4,5:5) -> 0.07 | BZ11: =interpolate_look_up(BZ10,4:4,5:5) -> 0.07 | CA11: =interpolate_look_up(CA10,4:4,5:5) -> 0.07 | CB11: =interpolate_look_up(CB10,4:4,5:5) -> 0.07 | CC11: =interpolate_look_up(CC10,4:4,5:5) -> 0.07 | CD11: =interpolate_look_up(CD10,4:4,5:5) -> 0.07 | CE11: =interpolate_look_up(CE10,4:4,5:5) -> 0.07 | CF11: =interpolate_look_up(CF10,4:4,5:5) -> 0.07 | CG11: =interpolate_look_up(CG10,4:4,5:5) -> 0.07 | CH11: =interpolate_look_up(CH10,4:4,5:5) -> 0.07 | CI11: =interpolate_look_up(CI10,4:4,5:5) -> 0.07 | CJ11: =interpolate_look_up(CJ10,4:4,5:5) -> 0.07 | CK11: =interpolate_look_up(CK10,4:4,5:5) -> 0.07 | CL11: =interpolate_look_up(CL10,4:4,5:5) -> 0.07 | CM11: =interpolate_look_up(CM10,4:4,5:5) -> 0.07 | CN11: =interpolate_look_up(CN10,4:4,5:5) -> 0.07 | CO11: =interpolate_look_up(CO10,4:4,5:5) -> 0.07 | CP11: =interpolate_look_up(CP10,4:4,5:5) -> 0.07 | CQ11: =interpolate_look_up(CQ10,4:4,5:5) -> 0.07 | CR11: =interpolate_look_up(CR10,4:4,5:5) -> 0.07 | CS11: =interpolate_look_up(CS10,4:4,5:5) -> 0.07 | CT11: =interpolate_look_up(CT10,4:4,5:5) -> 0.07 | CU11: =interpolate_look_up(CU10,4:4,5:5) -> 0.07 | CV11: =interpolate_look_up(CV10,4:4,5:5) -> 0.07 | CW11: =interpolate_look_up(CW10,4:4,5:5) -> 0.07 | CX11: =interpolate_look_up(CX10,4:4,5:5) -> 0.07 | CY11: =interpolate_look_up(CY10,4:4,5:5) -> 0.07 | CZ11: =interpolate_look_up(CZ10,4:4,5:5) -> 0.07 | DA11: =interpolate_look_up(DA10,4:4,5:5) -> 0.07 | DB11: =interpolate_look_up(DB10,4:4,5:5) -> 0.07 | DC11: =interpolate_look_up(DC10,4:4,5:5) -> 0.07 | DD11: =interpolate_look_up(DD10,4:4,5:5) -> 0.07 | DE11: =interpolate_look_up(DE10,4:4,5:5) -> 0.07 | DF11: =interpolate_look_up(DF10,4:4,5:5) -> 0.07 | DG11: =interpolate_look_up(DG10,4:4,5:5) -> 0.07 | DH11: =interpolate_look_up(DH10,4:4,5:5) -> 0.07 | DI11: =interpolate_look_up(DI10,4:4,5:5) -> 0.07 | DJ11: =interpolate_look_up(DJ10,4:4,5:5) -> 0.07 | DK11: =interpolate_look_up(DK10,4:4,5:5) -> 0.07 | DL11: =interpolate_look_up(DL10,4:4,5:5) -> 0.07 | DM11: =interpolate_look_up(DM10,4:4,5:5) -> 0.07 | DN11: =interpolate_look_up(DN10,4:4,5:5) -> 0.07 | DO11: =interpolate_look_up(DO10,4:4,5:5) -> 0.07 | DP11: =interpolate_look_up(DP10,4:4,5:5) -> 0.07 | DQ11: =interpolate_look_up(DQ10,4:4,5:5) -> 0.07 | DR11: =interpolate_look_up(DR10,4:4,5:5) -> 0.07 | DS11: =interpolate_look_up(DS10,4:4,5:5) -> 0.07 | DT11: =interpolate_look_up(DT10,4:4,5:5) -> 0.07 | DU11: =interpolate_look_up(DU10,4:4,5:5) -> 0.07 | DV11: =interpolate_look_up(DV10,4:4,5:5) -> 0.07 | DW11: =interpolate_look_up(DW10,4:4,5:5) -> 0.07 | DX11: =interpolate_look_up(DX10,4:4,5:5) -> 0.07 | DY11: =interpolate_look_up(DY10,4:4,5:5) -> 0.07 | DZ11: =interpolate_look_up(DZ10,4:4,5:5) -> 0.07 | EA11: =interpolate_look_up(EA10,4:4,5:5) -> 0.07 | EB11: =interpolate_look_up(EB10,4:4,5:5) -> 0.07 | EC11: =interpolate_look_up(EC10,4:4,5:5) -> 0.07 | ED11: =interpolate_look_up(ED10,4:4,5:5) -> 0.07 | EE11: =interpolate_look_up(EE10,4:4,5:5) -> 0.07 | EF11: =interpolate_look_up(EF10,4:4,5:5) -> 0.07 | EG11: =interpolate_look_up(EG10,4:4,5:5) -> 0.07 | EH11: =interpolate_look_up(EH10,4:4,5:5) -> 0.07 | EI11: =interpolate_look_up(EI10,4:4,5:5) -> 0.07 | EJ11: =interpolate_look_up(EJ10,4:4,5:5) -> 0.07 | EK11: =interpolate_look_up(EK10,4:4,5:5) -> 0.07 | EL11: =interpolate_look_up(EL10,4:4,5:5) -> 0.07 | EM11: =interpolate_look_up(EM10,4:4,5:5) -> 0.07 | EN11: =interpolate_look_up(EN10,4:4,5:5) -> 0.07 | EO11: =interpolate_look_up(EO10,4:4,5:5) -> 0.07 | EP11: =interpolate_look_up(EP10,4:4,5:5) -> 0.07 | EQ11: =interpolate_look_up(EQ10,4:4,5:5) -> 0.07 | ER11: =interpolate_look_up(ER10,4:4,5:5) -> 0.07 | ES11: =interpolate_look_up(ES10,4:4,5:5) -> 0.07 | ET11: =interpolate_look_up(ET10,4:4,5:5) -> 0.07 | EU11: =interpolate_look_up(EU10,4:4,5:5) -> 0.07 | EV11: =interpolate_look_up(EV10,4:4,5:5) -> 0.07 | EW11: =interpolate_look_up(EW10,4:4,5:5) -> 0.07 | EX11: =interpolate_look_up(EX10,4:4,5:5) -> 0.07 | EY11: =interpolate_look_up(EY10,4:4,5:5) -> 0.07 | EZ11: =interpolate_look_up(EZ10,4:4,5:5) -> 0.07 | FA11: =interpolate_look_up(FA10,4:4,5:5) -> 0.07 | FB11: =interpolate_look_up(FB10,4:4,5:5) -> 0.07 | FC11: =interpolate_look_up(FC10,4:4,5:5) -> 0.07 | FD11: =interpolate_look_up(FD10,4:4,5:5) -> 0.07 | FE11: =interpolate_look_up(FE10,4:4,5:5) -> 0.07 | FF11: =interpolate_look_up(FF10,4:4,5:5) -> 0.07 | FG11: =interpolate_look_up(FG10,4:4,5:5) -> 0.07 | FH11: =interpolate_look_up(FH10,4:4,5:5) -> 0.07 | FI11: =interpolate_look_up(FI10,4:4,5:5) -> 0.07 | FJ11: =interpolate_look_up(FJ10,4:4,5:5) -> 0.07 | FK11: =interpolate_look_up(FK10,4:4,5:5) -> 0.07 | FL11: =interpolate_look_up(FL10,4:4,5:5) -> 0.07 | FM11: =interpolate_look_up(FM10,4:4,5:5) -> 0.07 | FN11: =interpolate_look_up(FN10,4:4,5:5) -> 0.07 | FO11: =interpolate_look_up(FO10,4:4,5:5) -> 0.07 | FP11: =interpolate_look_up(FP10,4:4,5:5) -> 0.07 | FQ11: =interpolate_look_up(FQ10,4:4,5:5) -> 0.07 | FR11: =interpolate_look_up(FR10,4:4,5:5) -> 0.07 | FS11: =interpolate_look_up(FS10,4:4,5:5) -> 0.07 | FT11: =interpolate_look_up(FT10,4:4,5:5) -> 0.07 | FU11: =interpolate_look_up(FU10,4:4,5:5) -> 0.07 | FV11: =interpolate_look_up(FV10,4:4,5:5) -> 0.07 | FW11: =interpolate_look_up(FW10,4:4,5:5) -> 0.07 | FX11: =interpolate_look_up(FX10,4:4,5:5) -> 0.07 | FY11: =interpolate_look_up(FY10,4:4,5:5) -> 0.07 | FZ11: =interpolate_look_up(FZ10,4:4,5:5) -> 0.07 | GA11: =interpolate_look_up(GA10,4:4,5:5) -> 0.07 | GB11: =interpolate_look_up(GB10,4:4,5:5) -> 0.07 | GC11: =interpolate_look_up(GC10,4:4,5:5) -> 0.07 | GD11: =interpolate_look_up(GD10,4:4,5:5) -> 0.07 | GE11: =interpolate_look_up(GE10,4:4,5:5) -> 0.07 | GF11: =interpolate_look_up(GF10,4:4,5:5) -> 0.07 | GG11: =interpolate_look_up(GG10,4:4,5:5) -> 0.07 | GH11: =interpolate_look_up(GH10,4:4,5:5) -> 0.07 | GI11: =interpolate_look_up(GI10,4:4,5:5) -> 0.07 | GJ11: =interpolate_look_up(GJ10,4:4,5:5) -> 0.07 | GK11: =interpolate_look_up(GK10,4:4,5:5) -> 0.07 | GL11: =interpolate_look_up(GL10,4:4,5:5) -> 0.07 | GM11: =interpolate_look_up(GM10,4:4,5:5) -> 0.07 | GN11: =interpolate_look_up(GN10,4:4,5:5) -> 0.07 | GO11: =interpolate_look_up(GO10,4:4,5:5) -> 0.07 | GP11: =interpolate_look_up(GP10,4:4,5:5) -> 0.07 | GQ11: =interpolate_look_up(GQ10,4:4,5:5) -> 0.07 | GR11: =interpolate_look_up(GR10,4:4,5:5) -> 0.07 | GS11: =interpolate_look_up(GS10,4:4,5:5) -> 0.07 | GT11: =interpolate_look_up(GT10,4:4,5:5) -> 0.07 | GU11: =interpolate_look_up(GU10,4:4,5:5) -> 0.07 | GV11: =interpolate_look_up(GV10,4:4,5:5) -> 0.07 | GW11: =interpolate_look_up(GW10,4:4,5:5) -> 0.07 | GX11: =interpolate_look_up(GX10,4:4,5:5) -> 0.07 | GY11: =interpolate_look_up(GY10,4:4,5:5) -> 0.07 | GZ11: =interpolate_look_up(GZ10,4:4,5:5) -> 0.07 | HA11: =interpolate_look_up(HA10,4:4,5:5) -> 0.07 | HB11: =interpolate_look_up(HB10,4:4,5:5) -> 0.07 | HC11: =interpolate_look_up(HC10,4:4,5:5) -> 0.07 | HD11: =interpolate_look_up(HD10,4:4,5:5) -> 0.07 | HE11: =interpolate_look_up(HE10,4:4,5:5) -> 0.07 | HF11: =interpolate_look_up(HF10,4:4,5:5) -> 0.07 | HG11: =interpolate_look_up(HG10,4:4,5:5) -> 0.07 | HH11: =interpolate_look_up(HH10,4:4,5:5) -> 0.07 | HI11: =interpolate_look_up(HI10,4:4,5:5) -> 0.07 | HJ11: =interpolate_look_up(HJ10,4:4,5:5) -> 0.07 | HK11: =interpolate_look_up(HK10,4:4,5:5) -> 0.07 | HL11: =interpolate_look_up(HL10,4:4,5:5) -> 0.07 | HM11: =interpolate_look_up(HM10,4:4,5:5) -> 0.07 | HN11: =interpolate_look_up(HN10,4:4,5:5) -> 0.07 | HO11: =interpolate_look_up(HO10,4:4,5:5) -> 0.07 | HP11: =interpolate_look_up(HP10,4:4,5:5) -> 0.07 | HQ11: =interpolate_look_up(HQ10,4:4,5:5) -> 0.07 | HR11: =interpolate_look_up(HR10,4:4,5:5) -> 0.07 | HS11: =interpolate_look_up(HS10,4:4,5:5) -> 0.07 | HT11: =interpolate_look_up(HT10,4:4,5:5) -> 0.07 | HU11: =interpolate_look_up(HU10,4:4,5:5) -> 0.07 | HV11: =interpolate_look_up(HV10,4:4,5:5) -> 0.07 | HW11: =interpolate_look_up(HW10,4:4,5:5) -> 0.07 | HX11: =interpolate_look_up(HX10,4:4,5:5) -> 0.07 | HY11: =interpolate_look_up(HY10,4:4,5:5) -> 0.07 | HZ11: =interpolate_look_up(HZ10,4:4,5:5) -> 0.07 | IA11: =interpolate_look_up(IA10,4:4,5:5) -> 0.07 | IB11: =interpolate_look_up(IB10,4:4,5:5) -> 0.07 | IC11: =interpolate_look_up(IC10,4:4,5:5) -> 0.07 | ID11: =interpolate_look_up(ID10,4:4,5:5) -> 0.07 | IE11: =interpolate_look_up(IE10,4:4,5:5) -> 0.07 | IF11: =interpolate_look_up(IF10,4:4,5:5) -> 0.07 | IG11: =interpolate_look_up(IG10,4:4,5:5) -> 0.07 | IH11: =interpolate_look_up(IH10,4:4,5:5) -> 0.07 | II11: =interpolate_look_up(II10,4:4,5:5) -> 0.07 | IJ11: =interpolate_look_up(IJ10,4:4,5:5) -> 0.07 | IK11: =interpolate_look_up(IK10,4:4,5:5) -> 0.07 | IL11: =interpolate_look_up(IL10,4:4,5:5) -> 0.07 | IM11: =interpolate_look_up(IM10,4:4,5:5) -> 0.07 | IN11: =interpolate_look_up(IN10,4:4,5:5) -> 0.07 | IO11: =interpolate_look_up(IO10,4:4,5:5) -> 0.07 | IP11: =interpolate_look_up(IP10,4:4,5:5) -> 0.07 | IQ11: =interpolate_look_up(IQ10,4:4,5:5) -> 0.07 | IR11: =interpolate_look_up(IR10,4:4,5:5) -> 0.07 | IS11: =interpolate_look_up(IS10,4:4,5:5) -> 0.07 | IT11: =interpolate_look_up(IT10,4:4,5:5) -> 0.07 | IU11: =interpolate_look_up(IU10,4:4,5:5) -> 0.07 | IV11: =interpolate_look_up(IV10,4:4,5:5) -> 0.07 | IW11: =interpolate_look_up(IW10,4:4,5:5) -> 0.07 | IX11: =interpolate_look_up(IX10,4:4,5:5) -> 0.07 | IY11: =interpolate_look_up(IY10,4:4,5:5) -> 0.07 | IZ11: =interpolate_look_up(IZ10,4:4,5:5) -> 0.07 | JA11: =interpolate_look_up(JA10,4:4,5:5) -> 0.07 | JB11: =interpolate_look_up(JB10,4:4,5:5) -> 0.07 | JC11: =interpolate_look_up(JC10,4:4,5:5) -> 0.07 | JD11: =interpolate_look_up(JD10,4:4,5:5) -> 0.07 | JE11: =interpolate_look_up(JE10,4:4,5:5) -> 0.07 | JF11: =interpolate_look_up(JF10,4:4,5:5) -> 0.07 | JG11: =interpolate_look_up(JG10,4:4,5:5) -> 0.07 | JH11: =interpolate_look_up(JH10,4:4,5:5) -> 0.07 | JI11: =interpolate_look_up(JI10,4:4,5:5) -> 0.07 | JJ11: =interpolate_look_up(JJ10,4:4,5:5) -> 0.07 | JK11: =interpolate_look_up(JK10,4:4,5:5) -> 0.07 | JL11: =interpolate_look_up(JL10,4:4,5:5) -> 0.07 | JM11: =interpolate_look_up(JM10,4:4,5:5) -> 0.07 | JN11: =interpolate_look_up(JN10,4:4,5:5) -> 0.07 | JO11: =interpolate_look_up(JO10,4:4,5:5) -> 0.07 | JP11: =interpolate_look_up(JP10,4:4,5:5) -> 0.07 | JQ11: =interpolate_look_up(JQ10,4:4,5:5) -> 0.07 | JR11: =interpolate_look_up(JR10,4:4,5:5) -> 0.07 | JS11: =interpolate_look_up(JS10,4:4,5:5) -> 0.07 | JT11: =interpolate_look_up(JT10,4:4,5:5) -> 0.07 | JU11: =interpolate_look_up(JU10,4:4,5:5) -> 0.07 | JV11: =interpolate_look_up(JV10,4:4,5:5) -> 0.07 | JW11: =interpolate_look_up(JW10,4:4,5:5) -> 0.07 | JX11: =interpolate_look_up(JX10,4:4,5:5) -> 0.07 | JY11: =interpolate_look_up(JY10,4:4,5:5) -> 0.07 | JZ11: =interpolate_look_up(JZ10,4:4,5:5) -> 0.07 | KA11: =interpolate_look_up(KA10,4:4,5:5) -> 0.07 | KB11: =interpolate_look_up(KB10,4:4,5:5) -> 0.07 | KC11: =interpolate_look_up(KC10,4:4,5:5) -> 0.07 | KD11: =interpolate_look_up(KD10,4:4,5:5) -> 0.07 | KE11: =interpolate_look_up(KE10,4:4,5:5) -> 0.07 | KF11: =interpolate_look_up(KF10,4:4,5:5) -> 0.07 | KG11: =interpolate_look_up(KG10,4:4,5:5) -> 0.07 | KH11: =interpolate_look_up(KH10,4:4,5:5) -> 0.07 | KI11: =interpolate_look_up(KI10,4:4,5:5) -> 0.07 | KJ11: =interpolate_look_up(KJ10,4:4,5:5) -> 0.07 | KK11: =interpolate_look_up(KK10,4:4,5:5) -> 0.07 | KL11: =interpolate_look_up(KL10,4:4,5:5) -> 0.07 | KM11: =interpolate_look_up(KM10,4:4,5:5) -> 0.07 | KN11: =interpolate_look_up(KN10,4:4,5:5) -> 0.07 | KO11: =interpolate_look_up(KO10,4:4,5:5) -> 0.07 | KP11: =interpolate_look_up(KP10,4:4,5:5) -> 0.07 | KQ11: =interpolate_look_up(KQ10,4:4,5:5) -> 0.07 | KR11: =interpolate_look_up(KR10,4:4,5:5) -> 0.07 | KS11: =interpolate_look_up(KS10,4:4,5:5) -> 0.07 | KT11: =interpolate_look_up(KT10,4:4,5:5) -> 0.07 | KU11: =interpolate_look_up(KU10,4:4,5:5) -> 0.07 | KV11: =interpolate_look_up(KV10,4:4,5:5) -> 0.07 | KW11: =interpolate_look_up(KW10,4:4,5:5) -> 0.07 | KX11: =interpolate_look_up(KX10,4:4,5:5) -> 0.07 | KY11: =interpolate_look_up(KY10,4:4,5:5) -> 0.07 | KZ11: =interpolate_look_up(KZ10,4:4,5:5) -> 0.07 | LA11: =interpolate_look_up(LA10,4:4,5:5) -> 0.07 | LB11: =interpolate_look_up(LB10,4:4,5:5) -> 0.07 | LC11: =interpolate_look_up(LC10,4:4,5:5) -> 0.07 | LD11: =interpolate_look_up(LD10,4:4,5:5) -> 0.07 | LE11: =interpolate_look_up(LE10,4:4,5:5) -> 0.07 | LF11: =interpolate_look_up(LF10,4:4,5:5) -> 0.07 | LG11: =interpolate_look_up(LG10,4:4,5:5) -> 0.07 | LH11: =interpolate_look_up(LH10,4:4,5:5) -> 0.07 | LI11: =interpolate_look_up(LI10,4:4,5:5) -> 0.07 | LJ11: =interpolate_look_up(LJ10,4:4,5:5) -> 0.07 | LK11: =interpolate_look_up(LK10,4:4,5:5) -> 0.07 | LL11: =interpolate_look_up(LL10,4:4,5:5) -> 0.07 | LM11: =interpolate_look_up(LM10,4:4,5:5) -> 0.07 | LN11: =interpolate_look_up(LN10,4:4,5:5) -> 0.07 | LO11: =interpolate_look_up(LO10,4:4,5:5) -> 0.07 | LP11: =interpolate_look_up(LP10,4:4,5:5) -> 0.07 | LQ11: =interpolate_look_up(LQ10,4:4,5:5) -> 0.07 | LR11: =interpolate_look_up(LR10,4:4,5:5) -> 0.07 | LS11: =interpolate_look_up(LS10,4:4,5:5) -> 0.07 | LT11: =interpolate_look_up(LT10,4:4,5:5) -> 0.07 | LU11: =interpolate_look_up(LU10,4:4,5:5) -> 0.07 | LV11: =interpolate_look_up(LV10,4:4,5:5) -> 0.07 | LW11: =interpolate_look_up(LW10,4:4,5:5) -> 0.07 | LX11: =interpolate_look_up(LX10,4:4,5:5) -> 0.07 | LY11: =interpolate_look_up(LY10,4:4,5:5) -> 0.07 | LZ11: =interpolate_look_up(LZ10,4:4,5:5) -> 0.07 | MA11: =interpolate_look_up(MA10,4:4,5:5) -> 0.07 | MB11: =interpolate_look_up(MB10,4:4,5:5) -> 0.07 | MC11: =interpolate_look_up(MC10,4:4,5:5) -> 0.07 | MD11: =interpolate_look_up(MD10,4:4,5:5) -> 0.07 | ME11: =interpolate_look_up(ME10,4:4,5:5) -> 0.07 | MF11: =interpolate_look_up(MF10,4:4,5:5) -> 0.07 | MG11: =interpolate_look_up(MG10,4:4,5:5) -> 0.07 | MH11: =interpolate_look_up(MH10,4:4,5:5) -> 0.07 | MI11: =interpolate_look_up(MI10,4:4,5:5) -> 0.07 | MJ11: =interpolate_look_up(MJ10,4:4,5:5) -> 0.07 | MK11: =interpolate_look_up(MK10,4:4,5:5) -> 0.07 | ML11: =interpolate_look_up(ML10,4:4,5:5) -> 0.07 | MM11: =interpolate_look_up(MM10,4:4,5:5) -> 0.07 | MN11: =interpolate_look_up(MN10,4:4,5:5) -> 0.07 | MO11: =interpolate_look_up(MO10,4:4,5:5) -> 0.07 | MP11: =interpolate_look_up(MP10,4:4,5:5) -> 0.07 | MQ11: =interpolate_look_up(MQ10,4:4,5:5) -> 0.07 | MR11: =interpolate_look_up(MR10,4:4,5:5) -> 0.07 | MS11: =interpolate_look_up(MS10,4:4,5:5) -> 0.07 | MT11: =interpolate_look_up(MT10,4:4,5:5) -> 0.07 | MU11: =interpolate_look_up(MU10,4:4,5:5) -> 0.07 | MV11: =interpolate_look_up(MV10,4:4,5:5) -> 0.07 | MW11: =interpolate_look_up(MW10,4:4,5:5) -> 0.07 | MX11: =interpolate_look_up(MX10,4:4,5:5) -> 0.07 | MY11: =interpolate_look_up(MY10,4:4,5:5) -> 0.07 | MZ11: =interpolate_look_up(MZ10,4:4,5:5) -> 0.07 | NA11: =interpolate_look_up(NA10,4:4,5:5) -> 0.07 | NB11: =interpolate_look_up(NB10,4:4,5:5) -> 0.07 | NC11: =interpolate_look_up(NC10,4:4,5:5) -> 0.07 | ND11: =interpolate_look_up(ND10,4:4,5:5) -> 0.07 | NE11: =interpolate_look_up(NE10,4:4,5:5) -> 0.07 | NF11: =interpolate_look_up(NF10,4:4,5:5) -> 0.07 | NG11: =interpolate_look_up(NG10,4:4,5:5) -> 0.07 | NH11: =interpolate_look_up(NH10,4:4,5:5) -> 0.07 | NI11: =interpolate_look_up(NI10,4:4,5:5) -> 0.07 | NJ11: =interpolate_look_up(NJ10,4:4,5:5) -> 0.07 | NK11: =interpolate_look_up(NK10,4:4,5:5) -> 0.07 | NL11: =interpolate_look_up(NL10,4:4,5:5) -> 0.07 | NM11: =interpolate_look_up(NM10,4:4,5:5) -> 0.07 | NN11: =interpolate_look_up(NN10,4:4,5:5) -> 0.07 | NO11: =interpolate_look_up(NO10,4:4,5:5) -> 0.07 | NP11: =interpolate_look_up(NP10,4:4,5:5) -> 0.07 | NQ11: =interpolate_look_up(NQ10,4:4,5:5) -> 0.07 | NR11: =interpolate_look_up(NR10,4:4,5:5) -> 0.07 | NS11: =interpolate_look_up(NS10,4:4,5:5) -> 0.07 | NT11: =interpolate_look_up(NT10,4:4,5:5) -> 0.07 | NU11: =interpolate_look_up(NU10,4:4,5:5) -> 0.07 | NV11: =interpolate_look_up(NV10,4:4,5:5) -> 0.07 | NW11: =interpolate_look_up(NW10,4:4,5:5) -> 0.07 | NX11: =interpolate_look_up(NX10,4:4,5:5) -> 0.07 | NY11: =interpolate_look_up(NY10,4:4,5:5) -> 0.07 | NZ11: =interpolate_look_up(NZ10,4:4,5:5) -> 0.07 | OA11: =interpolate_look_up(OA10,4:4,5:5) -> 0.07 | OB11: =interpolate_look_up(OB10,4:4,5:5) -> 0.07 | OC11: =interpolate_look_up(OC10,4:4,5:5) -> 0.07 | OD11: =interpolate_look_up(OD10,4:4,5:5) -> 0.07 | OE11: =interpolate_look_up(OE10,4:4,5:5) -> 0.07 | OF11: =interpolate_look_up(OF10,4:4,5:5) -> 0.07 | OG11: =interpolate_look_up(OG10,4:4,5:5) -> 0.07 | OH11: =interpolate_look_up(OH10,4:4,5:5) -> 0.07 | OI11: =interpolate_look_up(OI10,4:4,5:5) -> 0.07 | OJ11: =interpolate_look_up(OJ10,4:4,5:5) -> 0.07 | OK11: =interpolate_look_up(OK10,4:4,5:5) -> 0.07 | OL11: =interpolate_look_up(OL10,4:4,5:5) -> 0.07 | OM11: =interpolate_look_up(OM10,4:4,5:5) -> 0.07 | ON11: =interpolate_look_up(ON10,4:4,5:5) -> 0.07 | OO11: =interpolate_look_up(OO10,4:4,5:5) -> 0.07 | OP11: =interpolate_look_up(OP10,4:4,5:5) -> 0.07 | OQ11: =interpolate_look_up(OQ10,4:4,5:5) -> 0.07 | OR11: =interpolate_look_up(OR10,4:4,5:5) -> 0.07 | OS11: =interpolate_look_up(OS10,4:4,5:5) -> 0.07 | OT11: =interpolate_look_up(OT10,4:4,5:5) -> 0.07 | OU11: =interpolate_look_up(OU10,4:4,5:5) -> 0.07 | OV11: =interpolate_look_up(OV10,4:4,5:5) -> 0.07 | OW11: =interpolate_look_up(OW10,4:4,5:5) -> 0.07 | OX11: =interpolate_look_up(OX10,4:4,5:5) -> 0.07 | OY11: =interpolate_look_up(OY10,4:4,5:5) -> 0.07 | OZ11: =interpolate_look_up(OZ10,4:4,5:5) -> 0.07 | PA11: =interpolate_look_up(PA10,4:4,5:5) -> 0.07 | PB11: =interpolate_look_up(PB10,4:4,5:5) -> 0.07 | PC11: =interpolate_look_up(PC10,4:4,5:5) -> 0.07 | PD11: =interpolate_look_up(PD10,4:4,5:5) -> 0.07 | PE11: =interpolate_look_up(PE10,4:4,5:5) -> 0.07 | PF11: =interpolate_look_up(PF10,4:4,5:5) -> 0.07 | PG11: =interpolate_look_up(PG10,4:4,5:5) -> 0.07 | PH11: =interpolate_look_up(PH10,4:4,5:5) -> 0.07 | PI11: =interpolate_look_up(PI10,4:4,5:5) -> 0.07 | PJ11: =interpolate_look_up(PJ10,4:4,5:5) -> 0.07 | PK11: =interpolate_look_up(PK10,4:4,5:5) -> 0.07 | PL11: =interpolate_look_up(PL10,4:4,5:5) -> 0.07 | PM11: =interpolate_look_up(PM10,4:4,5:5) -> 0.07 | PN11: =interpolate_look_up(PN10,4:4,5:5) -> 0.07 | PO11: =interpolate_look_up(PO10,4:4,5:5) -> 0.07 | PP11: =interpolate_look_up(PP10,4:4,5:5) -> 0.07 | PQ11: =interpolate_look_up(PQ10,4:4,5:5) -> 0.07 | PR11: =interpolate_look_up(PR10,4:4,5:5) -> 0.07 | PS11: =interpolate_look_up(PS10,4:4,5:5) -> 0.07 | PT11: =interpolate_look_up(PT10,4:4,5:5) -> 0.07 | PU11: =interpolate_look_up(PU10,4:4,5:5) -> 0.07 | PV11: =interpolate_look_up(PV10,4:4,5:5) -> 0.07 | PW11: =interpolate_look_up(PW10,4:4,5:5) -> 0.07 | PX11: =interpolate_look_up(PX10,4:4,5:5) -> 0.07 | PY11: =interpolate_look_up(PY10,4:4,5:5) -> 0.07 | PZ11: =interpolate_look_up(PZ10,4:4,5:5) -> 0.07 | QA11: =interpolate_look_up(QA10,4:4,5:5) -> 0.07 | QB11: =interpolate_look_up(QB10,4:4,5:5) -> 0.07 | QC11: =interpolate_look_up(QC10,4:4,5:5) -> 0.07 | QD11: =interpolate_look_up(QD10,4:4,5:5) -> 0.07 | QE11: =interpolate_look_up(QE10,4:4,5:5) -> 0.07 | QF11: =interpolate_look_up(QF10,4:4,5:5) -> 0.07 | QG11: =interpolate_look_up(QG10,4:4,5:5) -> 0.07 | QH11: =interpolate_look_up(QH10,4:4,5:5) -> 0.07 | QI11: =interpolate_look_up(QI10,4:4,5:5) -> 0.07 | QJ11: =interpolate_look_up(QJ10,4:4,5:5) -> 0.07 | QK11: =interpolate_look_up(QK10,4:4,5:5) -> 0.07 | QL11: =interpolate_look_up(QL10,4:4,5:5) -> 0.07 | QM11: =interpolate_look_up(QM10,4:4,5:5) -> 0.07 | QN11: =interpolate_look_up(QN10,4:4,5:5) -> 0.07 | QO11: =interpolate_look_up(QO10,4:4,5:5) -> 0.07 | QP11: =interpolate_look_up(QP10,4:4,5:5) -> 0.07 | QQ11: =interpolate_look_up(QQ10,4:4,5:5) -> 0.07 | QR11: =interpolate_look_up(QR10,4:4,5:5) -> 0.07 | QS11: =interpolate_look_up(QS10,4:4,5:5) -> 0.07 | QT11: =interpolate_look_up(QT10,4:4,5:5) -> 0.07 | QU11: =interpolate_look_up(QU10,4:4,5:5) -> 0.07 | QV11: =interpolate_look_up(QV10,4:4,5:5) -> 0.07 | QW11: =interpolate_look_up(QW10,4:4,5:5) -> 0.07 | QX11: =interpolate_look_up(QX10,4:4,5:5) -> 0.07 | QY11: =interpolate_look_up(QY10,4:4,5:5) -> 0.07 | QZ11: =interpolate_look_up(QZ10,4:4,5:5) -> 0.07 | RA11: =interpolate_look_up(RA10,4:4,5:5) -> 0.07 | RB11: =interpolate_look_up(RB10,4:4,5:5) -> 0.07 | RC11: =interpolate_look_up(RC10,4:4,5:5) -> 0.07 | RD11: =interpolate_look_up(RD10,4:4,5:5) -> 0.07 | RE11: =interpolate_look_up(RE10,4:4,5:5) -> 0.07 | RF11: =interpolate_look_up(RF10,4:4,5:5) -> 0.07 | RG11: =interpolate_look_up(RG10,4:4,5:5) -> 0.07 | RH11: =interpolate_look_up(RH10,4:4,5:5) -> 0.07 | RI11: =interpolate_look_up(RI10,4:4,5:5) -> 0.07 | RJ11: =interpolate_look_up(RJ10,4:4,5:5) -> 0.07 | RK11: =interpolate_look_up(RK10,4:4,5:5) -> 0.07 | RL11: =interpolate_look_up(RL10,4:4,5:5) -> 0.07 | RM11: =interpolate_look_up(RM10,4:4,5:5) -> 0.07 | RN11: =interpolate_look_up(RN10,4:4,5:5) -> 0.07 | RO11: =interpolate_look_up(RO10,4:4,5:5) -> 0.07 | RP11: =interpolate_look_up(RP10,4:4,5:5) -> 0.07 | RQ11: =interpolate_look_up(RQ10,4:4,5:5) -> 0.07 | RR11: =interpolate_look_up(RR10,4:4,5:5) -> 0.07 | RS11: =interpolate_look_up(RS10,4:4,5:5) -> 0.07 | RT11: =interpolate_look_up(RT10,4:4,5:5) -> 0.07 | RU11: =interpolate_look_up(RU10,4:4,5:5) -> 0.07 | RV11: =interpolate_look_up(RV10,4:4,5:5) -> 0.07 | RW11: =interpolate_look_up(RW10,4:4,5:5) -> 0.07 | RX11: =interpolate_look_up(RX10,4:4,5:5) -> 0.07 | RY11: =interpolate_look_up(RY10,4:4,5:5) -> 0.07 | RZ11: =interpolate_look_up(RZ10,4:4,5:5) -> 0.07 | SA11: =interpolate_look_up(SA10,4:4,5:5) -> 0.07 | SB11: =interpolate_look_up(SB10,4:4,5:5) -> 0.07 | SC11: =interpolate_look_up(SC10,4:4,5:5) -> 0.07 | SD11: =interpolate_look_up(SD10,4:4,5:5) -> 0.07 | SE11: =interpolate_look_up(SE10,4:4,5:5) -> 0.07 | SF11: =interpolate_look_up(SF10,4:4,5:5) -> 0.07 | SG11: =interpolate_look_up(SG10,4:4,5:5) -> 0.07 | SH11: =interpolate_look_up(SH10,4:4,5:5) -> 0.07 | SI11: =interpolate_look_up(SI10,4:4,5:5) -> 0.07 | SJ11: =interpolate_look_up(SJ10,4:4,5:5) -> 0.07 | SK11: =interpolate_look_up(SK10,4:4,5:5) -> 0.07
D12: Payout | E12: =(1-$E$6/E11) -> 0.7777777778 | F12: =(1-$E$6/F11) -> 0.7965721632 | G12: =(1-$E$6/G11) -> 0.8137770184 | H12: 0.8295267776 | I12: 0.8439445051 | J12: 0.8571428571 | K12: 0.8571428571 | L12: 0.8571428571 | M12: 0.8571428571 | N12: 0.8571428571 | O12: 0.8571428571 | P12: 0.8571428571 | Q12: 0.8571428571 | R12: 0.8571428571 | S12: 0.8571428571 | T12: 0.8571428571 | U12: 0.8571428571 | V12: 0.8571428571 | W12: 0.8571428571 | X12: 0.8571428571 | Y12: 0.8571428571 | Z12: 0.8571428571 | AA12: 0.8571428571 | AB12: 0.8571428571 | AC12: 0.8571428571 | AD12: 0.8571428571 | AE12: 0.8571428571 | AF12: 0.8571428571 | AG12: 0.8571428571 | AH12: 0.8571428571 | AI12: 0.8571428571 | AJ12: 0.8571428571 | AK12: 0.8571428571 | AL12: 0.8571428571 | AM12: 0.8571428571 | AN12: 0.8571428571 | AO12: 0.8571428571 | AP12: 0.8571428571 | AQ12: 0.8571428571 | AR12: 0.8571428571 | AS12: 0.8571428571 | AT12: 0.8571428571 | AU12: 0.8571428571 | AV12: 0.8571428571 | AW12: 0.8571428571 | AX12: 0.8571428571 | AY12: 0.8571428571 | AZ12: 0.8571428571 | BA12: 0.8571428571 | BB12: 0.8571428571 | BC12: 0.8571428571 | BD12: 0.8571428571 | BE12: 0.8571428571 | BF12: 0.8571428571 | BG12: 0.8571428571 | BH12: 0.8571428571 | BI12: 0.8571428571 | BJ12: 0.8571428571 | BK12: 0.8571428571 | BL12: 0.8571428571 | BM12: 0.8571428571 | BN12: 0.8571428571 | BO12: 0.8571428571 | BP12: 0.8571428571 | BQ12: 0.8571428571 | BR12: =(1-$E$6/BR11) -> 0.8571428571 | BS12: 0.8571428571 | BT12: 0.8571428571 | BU12: 0.8571428571 | BV12: 0.8571428571 | BW12: 0.8571428571 | BX12: 0.8571428571 | BY12: 0.8571428571 | BZ12: 0.8571428571 | CA12: 0.8571428571 | CB12: 0.8571428571 | CC12: 0.8571428571 | CD12: 0.8571428571 | CE12: 0.8571428571 | CF12: 0.8571428571 | CG12: 0.8571428571 | CH12: 0.8571428571 | CI12: 0.8571428571 | CJ12: 0.8571428571 | CK12: 0.8571428571 | CL12: 0.8571428571 | CM12: 0.8571428571 | CN12: 0.8571428571 | CO12: 0.8571428571 | CP12: 0.8571428571 | CQ12: 0.8571428571 | CR12: 0.8571428571 | CS12: 0.8571428571 | CT12: 0.8571428571 | CU12: 0.8571428571 | CV12: 0.8571428571 | CW12: 0.8571428571 | CX12: 0.8571428571 | CY12: 0.8571428571 | CZ12: 0.8571428571 | DA12: 0.8571428571 | DB12: 0.8571428571 | DC12: 0.8571428571 | DD12: 0.8571428571 | DE12: 0.8571428571 | DF12: 0.8571428571 | DG12: 0.8571428571 | DH12: 0.8571428571 | DI12: 0.8571428571 | DJ12: 0.8571428571 | DK12: 0.8571428571 | DL12: 0.8571428571 | DM12: 0.8571428571 | DN12: 0.8571428571 | DO12: 0.8571428571 | DP12: 0.8571428571 | DQ12: 0.8571428571 | DR12: 0.8571428571 | DS12: 0.8571428571 | DT12: 0.8571428571 | DU12: 0.8571428571 | DV12: 0.8571428571 | DW12: 0.8571428571 | DX12: 0.8571428571 | DY12: 0.8571428571 | DZ12: 0.8571428571 | EA12: 0.8571428571 | EB12: 0.8571428571 | EC12: 0.8571428571 | ED12: =(1-$E$6/ED11) -> 0.8571428571 | EE12: 0.8571428571 | EF12: 0.8571428571 | EG12: 0.8571428571 | EH12: 0.8571428571 | EI12: 0.8571428571 | EJ12: 0.8571428571 | EK12: 0.8571428571 | EL12: 0.8571428571 | EM12: 0.8571428571 | EN12: 0.8571428571 | EO12: 0.8571428571 | EP12: 0.8571428571 | EQ12: 0.8571428571 | ER12: 0.8571428571 | ES12: 0.8571428571 | ET12: 0.8571428571 | EU12: 0.8571428571 | EV12: 0.8571428571 | EW12: 0.8571428571 | EX12: 0.8571428571 | EY12: 0.8571428571 | EZ12: 0.8571428571 | FA12: 0.8571428571 | FB12: 0.8571428571 | FC12: 0.8571428571 | FD12: 0.8571428571 | FE12: 0.8571428571 | FF12: 0.8571428571 | FG12: 0.8571428571 | FH12: 0.8571428571 | FI12: 0.8571428571 | FJ12: 0.8571428571 | FK12: 0.8571428571 | FL12: 0.8571428571 | FM12: 0.8571428571 | FN12: 0.8571428571 | FO12: 0.8571428571 | FP12: 0.8571428571 | FQ12: 0.8571428571 | FR12: 0.8571428571 | FS12: 0.8571428571 | FT12: 0.8571428571 | FU12: 0.8571428571 | FV12: 0.8571428571 | FW12: 0.8571428571 | FX12: 0.8571428571 | FY12: 0.8571428571 | FZ12: 0.8571428571 | GA12: 0.8571428571 | GB12: 0.8571428571 | GC12: 0.8571428571 | GD12: 0.8571428571 | GE12: 0.8571428571 | GF12: 0.8571428571 | GG12: 0.8571428571 | GH12: 0.8571428571 | GI12: 0.8571428571 | GJ12: 0.8571428571 | GK12: 0.8571428571 | GL12: 0.8571428571 | GM12: 0.8571428571 | GN12: 0.8571428571 | GO12: 0.8571428571 | GP12: =(1-$E$6/GP11) -> 0.8571428571 | GQ12: 0.8571428571 | GR12: 0.8571428571 | GS12: 0.8571428571 | GT12: 0.8571428571 | GU12: 0.8571428571 | GV12: 0.8571428571 | GW12: 0.8571428571 | GX12: 0.8571428571 | GY12: 0.8571428571 | GZ12: 0.8571428571 | HA12: 0.8571428571 | HB12: 0.8571428571 | HC12: 0.8571428571 | HD12: 0.8571428571 | HE12: 0.8571428571 | HF12: 0.8571428571 | HG12: 0.8571428571 | HH12: 0.8571428571 | HI12: 0.8571428571 | HJ12: 0.8571428571 | HK12: 0.8571428571 | HL12: 0.8571428571 | HM12: 0.8571428571 | HN12: 0.8571428571 | HO12: 0.8571428571 | HP12: 0.8571428571 | HQ12: 0.8571428571 | HR12: 0.8571428571 | HS12: 0.8571428571 | HT12: 0.8571428571 | HU12: 0.8571428571 | HV12: 0.8571428571 | HW12: 0.8571428571 | HX12: 0.8571428571 | HY12: 0.8571428571 | HZ12: 0.8571428571 | IA12: 0.8571428571 | IB12: 0.8571428571 | IC12: 0.8571428571 | ID12: 0.8571428571 | IE12: 0.8571428571 | IF12: 0.8571428571 | IG12: 0.8571428571 | IH12: 0.8571428571 | II12: 0.8571428571 | IJ12: 0.8571428571 | IK12: 0.8571428571 | IL12: 0.8571428571 | IM12: 0.8571428571 | IN12: 0.8571428571 | IO12: 0.8571428571 | IP12: 0.8571428571 | IQ12: 0.8571428571 | IR12: 0.8571428571 | IS12: 0.8571428571 | IT12: 0.8571428571 | IU12: 0.8571428571 | IV12: 0.8571428571 | IW12: 0.8571428571 | IX12: 0.8571428571 | IY12: 0.8571428571 | IZ12: 0.8571428571 | JA12: 0.8571428571 | JB12: =(1-$E$6/JB11) -> 0.8571428571 | JC12: 0.8571428571 | JD12: 0.8571428571 | JE12: 0.8571428571 | JF12: 0.8571428571 | JG12: 0.8571428571 | JH12: 0.8571428571 | JI12: 0.8571428571 | JJ12: 0.8571428571 | JK12: 0.8571428571 | JL12: 0.8571428571 | JM12: 0.8571428571 | JN12: 0.8571428571 | JO12: 0.8571428571 | JP12: 0.8571428571 | JQ12: 0.8571428571 | JR12: 0.8571428571 | JS12: 0.8571428571 | JT12: 0.8571428571 | JU12: 0.8571428571 | JV12: 0.8571428571 | JW12: 0.8571428571 | JX12: 0.8571428571 | JY12: 0.8571428571 | JZ12: 0.8571428571 | KA12: 0.8571428571 | KB12: 0.8571428571 | KC12: 0.8571428571 | KD12: 0.8571428571 | KE12: 0.8571428571 | KF12: 0.8571428571 | KG12: 0.8571428571 | KH12: 0.8571428571 | KI12: 0.8571428571 | KJ12: 0.8571428571 | KK12: 0.8571428571 | KL12: 0.8571428571 | KM12: 0.8571428571 | KN12: 0.8571428571 | KO12: 0.8571428571 | KP12: 0.8571428571 | KQ12: 0.8571428571 | KR12: 0.8571428571 | KS12: 0.8571428571 | KT12: =(1-$E$6/KT11) -> 0.8571428571 | KU12: =(1-$E$6/KU11) -> 0.8571428571 | KV12: =(1-$E$6/KV11) -> 0.8571428571 | KW12: =(1-$E$6/KW11) -> 0.8571428571 | KX12: =(1-$E$6/KX11) -> 0.8571428571 | KY12: =(1-$E$6/KY11) -> 0.8571428571 | KZ12: =(1-$E$6/KZ11) -> 0.8571428571 | LA12: =(1-$E$6/LA11) -> 0.8571428571 | LB12: =(1-$E$6/LB11) -> 0.8571428571 | LC12: =(1-$E$6/LC11) -> 0.8571428571 | LD12: =(1-$E$6/LD11) -> 0.8571428571 | LE12: =(1-$E$6/LE11) -> 0.8571428571 | LF12: =(1-$E$6/LF11) -> 0.8571428571 | LG12: =(1-$E$6/LG11) -> 0.8571428571 | LH12: =(1-$E$6/LH11) -> 0.8571428571 | LI12: =(1-$E$6/LI11) -> 0.8571428571 | LJ12: =(1-$E$6/LJ11) -> 0.8571428571 | LK12: =(1-$E$6/LK11) -> 0.8571428571 | LL12: =(1-$E$6/LL11) -> 0.8571428571 | LM12: =(1-$E$6/LM11) -> 0.8571428571 | LN12: =(1-$E$6/LN11) -> 0.8571428571 | LO12: =(1-$E$6/LO11) -> 0.8571428571 | LP12: =(1-$E$6/LP11) -> 0.8571428571 | LQ12: =(1-$E$6/LQ11) -> 0.8571428571 | LR12: =(1-$E$6/LR11) -> 0.8571428571 | LS12: =(1-$E$6/LS11) -> 0.8571428571 | LT12: =(1-$E$6/LT11) -> 0.8571428571 | LU12: =(1-$E$6/LU11) -> 0.8571428571 | LV12: =(1-$E$6/LV11) -> 0.8571428571 | LW12: =(1-$E$6/LW11) -> 0.8571428571 | LX12: =(1-$E$6/LX11) -> 0.8571428571 | LY12: =(1-$E$6/LY11) -> 0.8571428571 | LZ12: =(1-$E$6/LZ11) -> 0.8571428571 | MA12: =(1-$E$6/MA11) -> 0.8571428571 | MB12: =(1-$E$6/MB11) -> 0.8571428571 | MC12: =(1-$E$6/MC11) -> 0.8571428571 | MD12: =(1-$E$6/MD11) -> 0.8571428571 | ME12: =(1-$E$6/ME11) -> 0.8571428571 | MF12: =(1-$E$6/MF11) -> 0.8571428571 | MG12: =(1-$E$6/MG11) -> 0.8571428571 | MH12: =(1-$E$6/MH11) -> 0.8571428571 | MI12: =(1-$E$6/MI11) -> 0.8571428571 | MJ12: =(1-$E$6/MJ11) -> 0.8571428571 | MK12: =(1-$E$6/MK11) -> 0.8571428571 | ML12: =(1-$E$6/ML11) -> 0.8571428571 | MM12: =(1-$E$6/MM11) -> 0.8571428571 | MN12: =(1-$E$6/MN11) -> 0.8571428571 | MO12: =(1-$E$6/MO11) -> 0.8571428571 | MP12: =(1-$E$6/MP11) -> 0.8571428571 | MQ12: =(1-$E$6/MQ11) -> 0.8571428571 | MR12: =(1-$E$6/MR11) -> 0.8571428571 | MS12: =(1-$E$6/MS11) -> 0.8571428571 | MT12: =(1-$E$6/MT11) -> 0.8571428571 | MU12: =(1-$E$6/MU11) -> 0.8571428571 | MV12: =(1-$E$6/MV11) -> 0.8571428571 | MW12: =(1-$E$6/MW11) -> 0.8571428571 | MX12: =(1-$E$6/MX11) -> 0.8571428571 | MY12: =(1-$E$6/MY11) -> 0.8571428571 | MZ12: =(1-$E$6/MZ11) -> 0.8571428571 | NA12: =(1-$E$6/NA11) -> 0.8571428571 | NB12: =(1-$E$6/NB11) -> 0.8571428571 | NC12: =(1-$E$6/NC11) -> 0.8571428571 | ND12: =(1-$E$6/ND11) -> 0.8571428571 | NE12: =(1-$E$6/NE11) -> 0.8571428571 | NF12: =(1-$E$6/NF11) -> 0.8571428571 | NG12: =(1-$E$6/NG11) -> 0.8571428571 | NH12: =(1-$E$6/NH11) -> 0.8571428571 | NI12: =(1-$E$6/NI11) -> 0.8571428571 | NJ12: =(1-$E$6/NJ11) -> 0.8571428571 | NK12: =(1-$E$6/NK11) -> 0.8571428571 | NL12: =(1-$E$6/NL11) -> 0.8571428571 | NM12: =(1-$E$6/NM11) -> 0.8571428571 | NN12: =(1-$E$6/NN11) -> 0.8571428571 | NO12: =(1-$E$6/NO11) -> 0.8571428571 | NP12: =(1-$E$6/NP11) -> 0.8571428571 | NQ12: =(1-$E$6/NQ11) -> 0.8571428571 | NR12: =(1-$E$6/NR11) -> 0.8571428571 | NS12: =(1-$E$6/NS11) -> 0.8571428571 | NT12: =(1-$E$6/NT11) -> 0.8571428571 | NU12: =(1-$E$6/NU11) -> 0.8571428571 | NV12: =(1-$E$6/NV11) -> 0.8571428571 | NW12: =(1-$E$6/NW11) -> 0.8571428571 | NX12: =(1-$E$6/NX11) -> 0.8571428571 | NY12: =(1-$E$6/NY11) -> 0.8571428571 | NZ12: =(1-$E$6/NZ11) -> 0.8571428571 | OA12: =(1-$E$6/OA11) -> 0.8571428571 | OB12: =(1-$E$6/OB11) -> 0.8571428571 | OC12: =(1-$E$6/OC11) -> 0.8571428571 | OD12: =(1-$E$6/OD11) -> 0.8571428571 | OE12: =(1-$E$6/OE11) -> 0.8571428571 | OF12: =(1-$E$6/OF11) -> 0.8571428571 | OG12: =(1-$E$6/OG11) -> 0.8571428571 | OH12: =(1-$E$6/OH11) -> 0.8571428571 | OI12: =(1-$E$6/OI11) -> 0.8571428571 | OJ12: =(1-$E$6/OJ11) -> 0.8571428571 | OK12: =(1-$E$6/OK11) -> 0.8571428571 | OL12: =(1-$E$6/OL11) -> 0.8571428571 | OM12: =(1-$E$6/OM11) -> 0.8571428571 | ON12: =(1-$E$6/ON11) -> 0.8571428571 | OO12: =(1-$E$6/OO11) -> 0.8571428571 | OP12: =(1-$E$6/OP11) -> 0.8571428571 | OQ12: =(1-$E$6/OQ11) -> 0.8571428571 | OR12: =(1-$E$6/OR11) -> 0.8571428571 | OS12: =(1-$E$6/OS11) -> 0.8571428571 | OT12: =(1-$E$6/OT11) -> 0.8571428571 | OU12: =(1-$E$6/OU11) -> 0.8571428571 | OV12: =(1-$E$6/OV11) -> 0.8571428571 | OW12: =(1-$E$6/OW11) -> 0.8571428571 | OX12: =(1-$E$6/OX11) -> 0.8571428571 | OY12: =(1-$E$6/OY11) -> 0.8571428571 | OZ12: =(1-$E$6/OZ11) -> 0.8571428571 | PA12: =(1-$E$6/PA11) -> 0.8571428571 | PB12: =(1-$E$6/PB11) -> 0.8571428571 | PC12: =(1-$E$6/PC11) -> 0.8571428571 | PD12: =(1-$E$6/PD11) -> 0.8571428571 | PE12: =(1-$E$6/PE11) -> 0.8571428571 | PF12: =(1-$E$6/PF11) -> 0.8571428571 | PG12: =(1-$E$6/PG11) -> 0.8571428571 | PH12: =(1-$E$6/PH11) -> 0.8571428571 | PI12: =(1-$E$6/PI11) -> 0.8571428571 | PJ12: =(1-$E$6/PJ11) -> 0.8571428571 | PK12: =(1-$E$6/PK11) -> 0.8571428571 | PL12: =(1-$E$6/PL11) -> 0.8571428571 | PM12: =(1-$E$6/PM11) -> 0.8571428571 | PN12: =(1-$E$6/PN11) -> 0.8571428571 | PO12: =(1-$E$6/PO11) -> 0.8571428571 | PP12: =(1-$E$6/PP11) -> 0.8571428571 | PQ12: =(1-$E$6/PQ11) -> 0.8571428571 | PR12: =(1-$E$6/PR11) -> 0.8571428571 | PS12: =(1-$E$6/PS11) -> 0.8571428571 | PT12: =(1-$E$6/PT11) -> 0.8571428571 | PU12: =(1-$E$6/PU11) -> 0.8571428571 | PV12: =(1-$E$6/PV11) -> 0.8571428571 | PW12: =(1-$E$6/PW11) -> 0.8571428571 | PX12: =(1-$E$6/PX11) -> 0.8571428571 | PY12: =(1-$E$6/PY11) -> 0.8571428571 | PZ12: =(1-$E$6/PZ11) -> 0.8571428571 | QA12: =(1-$E$6/QA11) -> 0.8571428571 | QB12: =(1-$E$6/QB11) -> 0.8571428571 | QC12: =(1-$E$6/QC11) -> 0.8571428571 | QD12: =(1-$E$6/QD11) -> 0.8571428571 | QE12: =(1-$E$6/QE11) -> 0.8571428571 | QF12: =(1-$E$6/QF11) -> 0.8571428571 | QG12: =(1-$E$6/QG11) -> 0.8571428571 | QH12: =(1-$E$6/QH11) -> 0.8571428571 | QI12: =(1-$E$6/QI11) -> 0.8571428571 | QJ12: =(1-$E$6/QJ11) -> 0.8571428571 | QK12: =(1-$E$6/QK11) -> 0.8571428571 | QL12: =(1-$E$6/QL11) -> 0.8571428571 | QM12: =(1-$E$6/QM11) -> 0.8571428571 | QN12: =(1-$E$6/QN11) -> 0.8571428571 | QO12: =(1-$E$6/QO11) -> 0.8571428571 | QP12: =(1-$E$6/QP11) -> 0.8571428571 | QQ12: =(1-$E$6/QQ11) -> 0.8571428571 | QR12: =(1-$E$6/QR11) -> 0.8571428571 | QS12: =(1-$E$6/QS11) -> 0.8571428571 | QT12: =(1-$E$6/QT11) -> 0.8571428571 | QU12: =(1-$E$6/QU11) -> 0.8571428571 | QV12: =(1-$E$6/QV11) -> 0.8571428571 | QW12: =(1-$E$6/QW11) -> 0.8571428571 | QX12: =(1-$E$6/QX11) -> 0.8571428571 | QY12: =(1-$E$6/QY11) -> 0.8571428571 | QZ12: =(1-$E$6/QZ11) -> 0.8571428571 | RA12: =(1-$E$6/RA11) -> 0.8571428571 | RB12: =(1-$E$6/RB11) -> 0.8571428571 | RC12: =(1-$E$6/RC11) -> 0.8571428571 | RD12: =(1-$E$6/RD11) -> 0.8571428571 | RE12: =(1-$E$6/RE11) -> 0.8571428571 | RF12: =(1-$E$6/RF11) -> 0.8571428571 | RG12: =(1-$E$6/RG11) -> 0.8571428571 | RH12: =(1-$E$6/RH11) -> 0.8571428571 | RI12: =(1-$E$6/RI11) -> 0.8571428571 | RJ12: =(1-$E$6/RJ11) -> 0.8571428571 | RK12: =(1-$E$6/RK11) -> 0.8571428571 | RL12: =(1-$E$6/RL11) -> 0.8571428571 | RM12: =(1-$E$6/RM11) -> 0.8571428571 | RN12: =(1-$E$6/RN11) -> 0.8571428571 | RO12: =(1-$E$6/RO11) -> 0.8571428571 | RP12: =(1-$E$6/RP11) -> 0.8571428571 | RQ12: =(1-$E$6/RQ11) -> 0.8571428571 | RR12: =(1-$E$6/RR11) -> 0.8571428571 | RS12: =(1-$E$6/RS11) -> 0.8571428571 | RT12: =(1-$E$6/RT11) -> 0.8571428571 | RU12: =(1-$E$6/RU11) -> 0.8571428571 | RV12: =(1-$E$6/RV11) -> 0.8571428571 | RW12: =(1-$E$6/RW11) -> 0.8571428571 | RX12: =(1-$E$6/RX11) -> 0.8571428571 | RY12: =(1-$E$6/RY11) -> 0.8571428571 | RZ12: =(1-$E$6/RZ11) -> 0.8571428571 | SA12: =(1-$E$6/SA11) -> 0.8571428571 | SB12: =(1-$E$6/SB11) -> 0.8571428571 | SC12: =(1-$E$6/SC11) -> 0.8571428571 | SD12: =(1-$E$6/SD11) -> 0.8571428571 | SE12: =(1-$E$6/SE11) -> 0.8571428571 | SF12: =(1-$E$6/SF11) -> 0.8571428571 | SG12: =(1-$E$6/SG11) -> 0.8571428571 | SH12: =(1-$E$6/SH11) -> 0.8571428571 | SI12: =(1-$E$6/SI11) -> 0.8571428571 | SJ12: =(1-$E$6/SJ11) -> 0.8571428571 | SK12: =(1-$E$6/SK11) -> 0.8571428571
D14: Opening Book Value
D15: Add: Income
D16: Less: Dividend
D17: Closing Book Value | E17: =Inputs!G14 -> 1000
D19: Terminal Value (Driver Formula) | SK19: =SK15*(1-F6/F5)/(E8-E6) -> 0
D20: Total Cash to Investors | F20: =F16+F19 -> 0 | G20: =G16+G19 -> 0 | H20: =H16+H19 -> 0 | I20: 0 | J20: 0 | K20: 0 | L20: 0 | M20: 0 | N20: 0 | O20: 0 | P20: 0 | Q20: 0 | R20: 0 | S20: 0 | T20: 0 | U20: 0 | V20: 0 | W20: 0 | X20: 0 | Y20: 0 | Z20: 0 | AA20: 0 | AB20: 0 | AC20: 0 | AD20: 0 | AE20: 0 | AF20: 0 | AG20: 0 | AH20: 0 | AI20: 0 | AJ20: 0 | AK20: 0 | AL20: 0 | AM20: 0 | AN20: 0 | AO20: 0 | AP20: 0 | AQ20: 0 | AR20: 0 | AS20: 0 | AT20: 0 | AU20: 0 | AV20: 0 | AW20: 0 | AX20: 0 | AY20: 0 | AZ20: 0 | BA20: 0 | BB20: 0 | BC20: 0 | BD20: 0 | BE20: 0 | BF20: 0 | BG20: 0 | BH20: 0 | BI20: 0 | BJ20: 0 | BK20: 0 | BL20: 0 | BM20: 0 | BN20: 0 | BO20: 0 | BP20: 0 | BQ20: 0 | BR20: 0 | BS20: =BS16+BS19 -> 0 | BT20: 0 | BU20: 0 | BV20: 0 | BW20: 0 | BX20: 0 | BY20: 0 | BZ20: 0 | CA20: 0 | CB20: 0 | CC20: 0 | CD20: 0 | CE20: 0 | CF20: 0 | CG20: 0 | CH20: 0 | CI20: 0 | CJ20: 0 | CK20: 0 | CL20: 0 | CM20: 0 | CN20: 0 | CO20: 0 | CP20: 0 | CQ20: 0 | CR20: 0 | CS20: 0 | CT20: 0 | CU20: 0 | CV20: 0 | CW20: 0 | CX20: 0 | CY20: 0 | CZ20: 0 | DA20: 0 | DB20: 0 | DC20: 0 | DD20: 0 | DE20: 0 | DF20: 0 | DG20: 0 | DH20: 0 | DI20: 0 | DJ20: 0 | DK20: 0 | DL20: 0 | DM20: 0 | DN20: 0 | DO20: 0 | DP20: 0 | DQ20: 0 | DR20: 0 | DS20: 0 | DT20: 0 | DU20: 0 | DV20: 0 | DW20: 0 | DX20: 0 | DY20: 0 | DZ20: 0 | EA20: 0 | EB20: 0 | EC20: 0 | ED20: 0 | EE20: =EE16+EE19 -> 0 | EF20: 0 | EG20: 0 | EH20: 0 | EI20: 0 | EJ20: 0 | EK20: 0 | EL20: 0 | EM20: 0 | EN20: 0 | EO20: 0 | EP20: 0 | EQ20: 0 | ER20: 0 | ES20: 0 | ET20: 0 | EU20: 0 | EV20: 0 | EW20: 0 | EX20: 0 | EY20: 0 | EZ20: 0 | FA20: 0 | FB20: 0 | FC20: 0 | FD20: 0 | FE20: 0 | FF20: 0 | FG20: 0 | FH20: 0 | FI20: 0 | FJ20: 0 | FK20: 0 | FL20: 0 | FM20: 0 | FN20: 0 | FO20: 0 | FP20: 0 | FQ20: 0 | FR20: 0 | FS20: 0 | FT20: 0 | FU20: 0 | FV20: 0 | FW20: 0 | FX20: 0 | FY20: 0 | FZ20: 0 | GA20: 0 | GB20: 0 | GC20: 0 | GD20: 0 | GE20: 0 | GF20: 0 | GG20: 0 | GH20: 0 | GI20: 0 | GJ20: 0 | GK20: 0 | GL20: 0 | GM20: 0 | GN20: 0 | GO20: 0 | GP20: 0 | GQ20: =GQ16+GQ19 -> 0 | GR20: 0 | GS20: 0 | GT20: 0 | GU20: 0 | GV20: 0 | GW20: 0 | GX20: 0 | GY20: 0 | GZ20: 0 | HA20: 0 | HB20: 0 | HC20: 0 | HD20: 0 | HE20: 0 | HF20: 0 | HG20: 0 | HH20: 0 | HI20: 0 | HJ20: 0 | HK20: 0 | HL20: 0 | HM20: 0 | HN20: 0 | HO20: 0 | HP20: 0 | HQ20: 0 | HR20: 0 | HS20: 0 | HT20: 0 | HU20: 0 | HV20: 0 | HW20: 0 | HX20: 0 | HY20: 0 | HZ20: 0 | IA20: 0 | IB20: 0 | IC20: 0 | ID20: 0 | IE20: 0 | IF20: 0 | IG20: 0 | IH20: 0 | II20: 0 | IJ20: 0 | IK20: 0 | IL20: 0 | IM20: 0 | IN20: 0 | IO20: 0 | IP20: 0 | IQ20: 0 | IR20: 0 | IS20: 0 | IT20: 0 | IU20: 0 | IV20: 0 | IW20: 0 | IX20: 0 | IY20: 0 | IZ20: 0 | JA20: 0 | JB20: 0 | JC20: =JC16+JC19 -> 0 | JD20: 0 | JE20: 0 | JF20: 0 | JG20: 0 | JH20: 0 | JI20: 0 | JJ20: 0 | JK20: 0 | JL20: 0 | JM20: 0 | JN20: 0 | JO20: 0 | JP20: 0 | JQ20: 0 | JR20: 0 | JS20: 0 | JT20: 0 | JU20: 0 | JV20: 0 | JW20: 0 | JX20: 0 | JY20: 0 | JZ20: 0 | KA20: 0 | KB20: 0 | KC20: 0 | KD20: 0 | KE20: 0 | KF20: 0 | KG20: 0 | KH20: 0 | KI20: 0 | KJ20: 0 | KK20: 0 | KL20: 0 | KM20: 0 | KN20: 0 | KO20: 0 | KP20: 0 | KQ20: 0 | KR20: 0 | KS20: 0 | KT20: 0 | KU20: 0 | KV20: 0 | KW20: 0 | KX20: 0 | KY20: 0 | KZ20: 0 | LA20: 0 | LB20: 0 | LC20: 0 | LD20: 0 | LE20: 0 | LF20: 0 | LG20: 0 | LH20: 0 | LI20: 0 | LJ20: 0 | LK20: 0 | LL20: 0 | LM20: 0 | LN20: 0 | LO20: =LO16+LO19 -> 0 | LP20: 0 | LQ20: 0 | LR20: 0 | LS20: 0 | LT20: 0 | LU20: 0 | LV20: 0 | LW20: 0 | LX20: 0 | LY20: 0 | LZ20: 0 | MA20: 0 | MB20: 0 | MC20: 0 | MD20: 0 | ME20: 0 | MF20: 0 | MG20: 0 | MH20: 0 | MI20: 0 | MJ20: 0 | MK20: 0 | ML20: 0 | MM20: 0 | MN20: 0 | MO20: 0 | MP20: 0 | MQ20: 0 | MR20: 0 | MS20: 0 | MT20: 0 | MU20: 0 | MV20: 0 | MW20: 0 | MX20: 0 | MY20: 0 | MZ20: 0 | NA20: 0 | NB20: 0 | NC20: 0 | ND20: 0 | NE20: 0 | NF20: 0 | NG20: 0 | NH20: 0 | NI20: 0 | NJ20: 0 | NK20: 0 | NL20: 0 | NM20: 0 | NN20: 0 | NO20: 0 | NP20: 0 | NQ20: 0 | NR20: 0 | NS20: 0 | NT20: 0 | NU20: 0 | NV20: 0 | NW20: 0 | NX20: 0 | NY20: 0 | NZ20: 0 | OA20: =OA16+OA19 -> 0 | OB20: 0 | OC20: 0 | OD20: 0 | OE20: 0 | OF20: 0 | OG20: 0 | OH20: 0 | OI20: 0 | OJ20: 0 | OK20: 0 | OL20: 0 | OM20: 0 | ON20: 0 | OO20: 0 | OP20: 0 | OQ20: 0 | OR20: 0 | OS20: 0 | OT20: 0 | OU20: 0 | OV20: 0 | OW20: 0 | OX20: 0 | OY20: 0 | OZ20: 0 | PA20: 0 | PB20: 0 | PC20: 0 | PD20: 0 | PE20: 0 | PF20: 0 | PG20: 0 | PH20: 0 | PI20: 0 | PJ20: 0 | PK20: 0 | PL20: 0 | PM20: 0 | PN20: 0 | PO20: 0 | PP20: 0 | PQ20: 0 | PR20: 0 | PS20: 0 | PT20: 0 | PU20: 0 | PV20: 0 | PW20: 0 | PX20: 0 | PY20: 0 | PZ20: 0 | QA20: 0 | QB20: 0 | QC20: 0 | QD20: 0 | QE20: 0 | QF20: 0 | QG20: 0 | QH20: 0 | QI20: 0 | QJ20: 0 | QK20: 0 | QL20: 0 | QM20: =QM16+QM19 -> 0 | QN20: 0 | QO20: 0 | QP20: 0 | QQ20: 0 | QR20: 0 | QS20: 0 | QT20: 0 | QU20: 0 | QV20: 0 | QW20: 0 | QX20: 0 | QY20: 0 | QZ20: 0 | RA20: 0 | RB20: 0 | RC20: 0 | RD20: 0 | RE20: 0 | RF20: 0 | RG20: 0 | RH20: 0 | RI20: 0 | RJ20: 0 | RK20: 0 | RL20: 0 | RM20: 0 | RN20: 0 | RO20: 0 | RP20: 0 | RQ20: 0 | RR20: 0 | RS20: 0 | RT20: 0 | RU20: 0 | RV20: 0 | RW20: 0 | RX20: 0 | RY20: 0 | RZ20: 0 | SA20: 0 | SB20: 0 | SC20: 0 | SD20: 0 | SE20: 0 | SF20: 0 | SG20: 0 | SH20: 0 | SI20: 0 | SJ20: 0 | SK20: 0
D22: Income Growth Rate | G22: =G15/F15-1 ->  | H22: =H15/G15-1 ->  | BT22: =BT15/BS15-1 ->  | EF22: =EF15/EE15-1 ->  | GR22: =GR15/GQ15-1 ->  | JD22: =JD15/JC15-1 ->  | LP22: =LP15/LO15-1 ->  | OB22: =OB15/OA15-1 ->  | QN22: =QN15/QM15-1 -> 
D23: Net Asset Growth Rate | G23: =G14/F14-1 ->  | H23: =H14/G14-1 ->  | BT23: =BT14/BS14-1 ->  | EF23: =EF14/EE14-1 ->  | GR23: =GR14/GQ14-1 ->  | JD23: =JD14/JC14-1 ->  | LP23: =LP14/LO14-1 ->  | OB23: =OB14/OA14-1 ->  | QN23: =QN14/QM14-1 -> 
B25: Valuation
D26: Value | E26: =NPV($E$8,F20:SK20) -> 0 | G26: =NPV($E$8,F19:SK19) | J26: 1151.140468
D27: Formula Value | E27: =Inputs!AI17 -> 0
D29: PE Ratio - Correct | E29: =E26/F15 ->  | G29: =E22/F15
D30: PE Ratio - Formula | E30: =E27/F15 ->  | G30: =E23/F15
F35: 1000 | G35: 1010 | H35: 1020.1 | I35: 1030.301 | J35: 1040.60401 | K35: 1051.01005 | L35: 1061.520151 | M35: 1072.135352 | N35: 1082.856706 | O35: 1093.685273 | P35: 1104.622125 | Q35: 1115.668347 | R35: 1126.82503 | S35: 1138.09328 | T35: 1149.474213 | U35: 1160.968955 | V35: 1172.578645 | W35: 1184.304431 | X35: 1196.147476 | Y35: 1208.10895 | Z35: 1220.19004 | AA35: 1232.39194 | AB35: 1244.71586 | AC35: 1257.163018 | AD35: 1269.734649 | AE35: 1282.431995 | AF35: 1295.256315 | AG35: 1308.208878 | AH35: 1321.290967 | AI35: 1334.503877 | AJ35: 1347.848915 | AK35: 1361.327404 | AL35: 1374.940679 | AM35: 1388.690085 | AN35: 1402.576986 | AO35: 1416.602756 | AP35: 1430.768784 | AQ35: 1445.076471 | AR35: 1459.527236 | AS35: 1474.122509 | AT35: 1488.863734 | AU35: 1503.752371 | AV35: 1518.789895 | AW35: 1533.977794 | AX35: 1549.317572 | AY35: 1564.810747 | AZ35: 1580.458855 | BA35: 1596.263443 | BB35: 1612.226078 | BC35: 1628.348338 | BD35: 1644.631822 | BE35: 1661.07814 | BF35: 1677.688921 | BG35: 1694.465811 | BH35: 1711.410469 | BI35: 1728.524573 | BJ35: 1745.809819 | BK35: 1763.267917 | BL35: 1780.900597 | BM35: 1798.709603 | BN35: 1816.696699 | BO35: 1834.863666 | BP35: 1853.212302 | BQ35: 1871.744425 | BR35: 1890.461869 | BS35: 1909.366488 | BT35: 1928.460153 | BU35: 1947.744755 | BV35: 1967.222202 | BW35: 1986.894424 | BX35: 2006.763368 | BY35: 2026.831002 | BZ35: 2047.099312 | CA35: 2067.570305 | CB35: 2088.246008 | CC35: 2109.128468 | CD35: 2130.219753 | CE35: 2151.521951 | CF35: 2173.03717 | CG35: 2194.767542 | CH35: 2216.715217 | CI35: 2238.882369 | CJ35: 2261.271193 | CK35: 2283.883905 | CL35: 2306.722744 | CM35: 2329.789971 | CN35: 2353.087871 | CO35: 2376.61875 | CP35: 2400.384937 | CQ35: 2424.388787 | CR35: 2448.632675 | CS35: 2473.119001 | CT35: 2497.850191 | CU35: 2522.828693 | CV35: 2548.05698 | CW35: 2573.53755 | CX35: 2599.272926 | CY35: 2625.265655 | CZ35: 2651.518311 | DA35: 2678.033494 | DB35: 2704.813829 | DC35: 2731.861968 | DD35: 2759.180587 | DE35: 2786.772393 | DF35: 2814.640117 | DG35: 2842.786518 | DH35: 2871.214384 | DI35: 2899.926527 | DJ35: 2928.925793 | DK35: 2958.215051 | DL35: 2987.797201 | DM35: 3017.675173 | DN35: 3047.851925 | DO35: 3078.330444 | DP35: 3109.113749 | DQ35: 3140.204886 | DR35: 3171.606935 | DS35: 3203.323004 | DT35: 3235.356234 | DU35: 3267.709797 | DV35: 3300.386895 | DW35: 3333.390764 | DX35: 3366.724671 | DY35: 3400.391918 | DZ35: 3434.395837 | EA35: 3468.739795 | EB35: 3503.427193 | EC35: 3538.461465 | ED35: 3573.84608 | EE35: 3609.584541 | EF35: 3645.680386 | EG35: 3682.13719 | EH35: 3718.958562 | EI35: 3756.148148 | EJ35: 3793.709629 | EK35: 3831.646725 | EL35: 3869.963193 | EM35: 3908.662824 | EN35: 3947.749453 | EO35: 3987.226947 | EP35: 4027.099217 | EQ35: 4067.370209 | ER35: 4108.043911 | ES35: 4149.12435 | ET35: 4190.615594 | EU35: 4232.52175 | EV35: 4274.846967 | EW35: 4317.595437 | EX35: 4360.771391 | EY35: 4404.379105 | EZ35: 4448.422896 | FA35: 4492.907125 | FB35: 4537.836196 | FC35: 4583.214558 | FD35: 4629.046704 | FE35: 4675.337171 | FF35: 4722.090543 | FG35: 4769.311448 | FH35: 4817.004562 | FI35: 4865.174608 | FJ35: 4913.826354 | FK35: 4962.964618 | FL35: 5012.594264 | FM35: 5062.720206 | FN35: 5113.347409 | FO35: 5164.480883 | FP35: 5216.125691 | FQ35: 5268.286948 | FR35: 5320.969818 | FS35: 5374.179516 | FT35: 5427.921311 | FU35: 5482.200524 | FV35: 5537.02253 | FW35: 5592.392755 | FX35: 5648.316682 | FY35: 5704.799849 | FZ35: 5761.847848 | GA35: 5819.466326 | GB35: 5877.660989 | GC35: 5936.437599 | GD35: 5995.801975 | GE35: 6055.759995 | GF35: 6116.317595 | GG35: 6177.480771 | GH35: 6239.255579 | GI35: 6301.648135 | GJ35: 6364.664616 | GK35: 6428.311262 | GL35: 6492.594375 | GM35: 6557.520318 | GN35: 6623.095522 | GO35: 6689.326477 | GP35: 6756.219742 | GQ35: 6823.781939 | GR35: 6892.019758 | GS35: 6960.939956 | GT35: 7030.549355 | GU35: 7100.854849 | GV35: 7171.863398 | GW35: 7243.582032 | GX35: 7316.017852 | GY35: 7389.17803 | GZ35: 7463.069811 | HA35: 7537.700509 | HB35: 7613.077514 | HC35: 7689.208289 | HD35: 7766.100372 | HE35: 7843.761376 | HF35: 7922.198989 | HG35: 8001.420979 | HH35: 8081.435189 | HI35: 8162.249541 | HJ35: 8243.872036 | HK35: 8326.310757 | HL35: 8409.573864 | HM35: 8493.669603 | HN35: 8578.606299 | HO35: 8664.392362 | HP35: 8751.036286 | HQ35: 8838.546648 | HR35: 8926.932115 | HS35: 9016.201436 | HT35: 9106.36345 | HU35: 9197.427085 | HV35: 9289.401356 | HW35: 9382.295369 | HX35: 9476.118323 | HY35: 9570.879506 | HZ35: 9666.588301 | IA35: 9763.254184 | IB35: 9860.886726 | IC35: 9959.495593 | ID35: 10059.09055 | IE35: 10159.68145 | IF35: 10261.27827 | IG35: 10363.89105 | IH35: 10467.52996 | II35: 10572.20526 | IJ35: 10677.92731 | IK35: 10784.70659 | IL35: 10892.55365 | IM35: 11001.47919 | IN35: 11111.49398 | IO35: 11222.60892 | IP35: 11334.83501 | IQ35: 11448.18336 | IR35: 11562.6652 | IS35: 11678.29185 | IT35: 11795.07477 | IU35: 11913.02551 | IV35: 12032.15577 | IW35: 12152.47733 | IX35: 12274.0021 | IY35: 12396.74212 | IZ35: 12520.70954 | JA35: 12645.91664 | JB35: 12772.3758 | JC35: 12900.09956 | JD35: 13029.10056 | JE35: 13159.39156 | JF35: 13290.98548 | JG35: 13423.89533 | JH35: 13558.13429 | JI35: 13693.71563 | JJ35: 13830.65279 | JK35: 13968.95931 | JL35: 14108.64891 | JM35: 14249.7354 | JN35: 14392.23275 | JO35: 14536.15508 | JP35: 14681.51663 | JQ35: 14828.33179 | JR35: 14976.61511 | JS35: 15126.38126 | JT35: 15277.64508 | JU35: 15430.42153 | JV35: 15584.72574 | JW35: 15740.573 | JX35: 15897.97873 | JY35: 16056.95852 | JZ35: 16217.5281 | KA35: 16379.70338 | KB35: 16543.50042 | KC35: 16708.93542 | KD35: 16876.02477 | KE35: 17044.78502 | KF35: 17215.23287 | KG35: 17387.3852 | KH35: 17561.25905 | KI35: 17736.87164 | KJ35: 17914.24036 | KK35: 18093.38276 | KL35: 18274.31659 | KM35: 18457.05976 | KN35: 18641.63036 | KO35: 18828.04666 | KP35: 19016.32713 | KQ35: 19206.4904 | KR35: 19398.5553 | KS35: 19592.54085 | KT35: 19788.46626 | KU35: 19986.35092 | KV35: 20186.21443 | KW35: 20388.07658 | KX35: 20591.95734 | KY35: 20797.87692 | KZ35: 21005.85569 | LA35: 21215.91424 | LB35: 21428.07339 | LC35: 21642.35412 | LD35: 21858.77766 | LE35: 22077.36544 | LF35: 22298.13909 | LG35: 22521.12048 | LH35: 22746.33169 | LI35: 22973.795 | LJ35: 23203.53295 | LK35: 23435.56828 | LL35: 23669.92397 | LM35: 23906.62321 | LN35: 24145.68944 | LO35: 24387.14633 | LP35: 24631.0178 | LQ35: 24877.32797 | LR35: 25126.10125 | LS35: 25377.36227 | LT35: 25631.13589 | LU35: 25887.44725 | LV35: 26146.32172 | LW35: 26407.78494 | LX35: 26671.86279 | LY35: 26938.58142 | LZ35: 27207.96723 | MA35: 27480.0469 | MB35: 27754.84737 | MC35: 28032.39584 | MD35: 28312.7198 | ME35: 28595.847 | MF35: 28881.80547 | MG35: 29170.62353 | MH35: 29462.32976 | MI35: 29756.95306 | MJ35: 30054.52259 | MK35: 30355.06781 | ML35: 30658.61849 | MM35: 30965.20468 | MN35: 31274.85672 | MO35: 31587.60529 | MP35: 31903.48134 | MQ35: 32222.51616 | MR35: 32544.74132 | MS35: 32870.18873 | MT35: 33198.89062 | MU35: 33530.87953 | MV35: 33866.18832 | MW35: 34204.85021 | MX35: 34546.89871 | MY35: 34892.36769 | MZ35: 35241.29137 | NA35: 35593.70428 | NB35: 35949.64133 | NC35: 36309.13774 | ND35: 36672.22912 | NE35: 37038.95141 | NF35: 37409.34092 | NG35: 37783.43433 | NH35: 38161.26868 | NI35: 38542.88136 | NJ35: 38928.31018 | NK35: 39317.59328 | NL35: 39710.76921 | NM35: 40107.8769 | NN35: 40508.95567 | NO35: 40914.04523 | NP35: 41323.18568 | NQ35: 41736.41754 | NR35: 42153.78171 | NS35: 42575.31953 | NT35: 43001.07273 | NU35: 43431.08345 | NV35: 43865.39429 | NW35: 44304.04823 | NX35: 44747.08871 | NY35: 45194.5596 | NZ35: 45646.5052 | OA35: 46102.97025 | OB35: 46563.99995 | OC35: 47029.63995 | OD35: 47499.93635 | OE35: 47974.93571 | OF35: 48454.68507 | OG35: 48939.23192 | OH35: 49428.62424 | OI35: 49922.91048 | OJ35: 50422.13959 | OK35: 50926.36098 | OL35: 51435.62459 | OM35: 51949.98084 | ON35: 52469.48065 | OO35: 52994.17545 | OP35: 53524.11721 | OQ35: 54059.35838 | OR35: 54599.95196 | OS35: 55145.95148 | OT35: 55697.411 | OU35: 56254.38511 | OV35: 56816.92896 | OW35: 57385.09825 | OX35: 57958.94923 | OY35: 58538.53872 | OZ35: 59123.92411 | PA35: 59715.16335 | PB35: 60312.31499 | PC35: 60915.43814 | PD35: 61524.59252 | PE35: 62139.83844 | PF35: 62761.23683 | PG35: 63388.8492 | PH35: 64022.73769 | PI35: 64662.96506 | PJ35: 65309.59471 | PK35: 65962.69066 | PL35: 66622.31757 | PM35: 67288.54074 | PN35: 67961.42615 | PO35: 68641.04041 | PP35: 69327.45082 | PQ35: 70020.72533 | PR35: 70720.93258 | PS35: 71428.1419 | PT35: 72142.42332 | PU35: 72863.84756 | PV35: 73592.48603 | PW35: 74328.41089 | PX35: 75071.695 | PY35: 75822.41195 | PZ35: 76580.63607 | QA35: 77346.44243 | QB35: 78119.90686 | QC35: 78901.10592 | QD35: 79690.11698 | QE35: 80487.01815 | QF35: 81291.88834 | QG35: 82104.80722 | QH35: 82925.85529 | QI35: 83755.11384 | QJ35: 84592.66498 | QK35: 85438.59163 | QL35: 86292.97755 | QM35: 87155.90732 | QN35: 88027.4664 | QO35: 88907.74106 | QP35: 89796.81847 | QQ35: 90694.78666 | QR35: 91601.73452 | QS35: 92517.75187 | QT35: 93442.92939 | QU35: 94377.35868 | QV35: 95321.13227 | QW35: 96274.34359 | QX35: 97237.08703 | QY35: 98209.4579 | QZ35: 99191.55248 | RA35: 100183.468 | RB35: 101185.3027 | RC35: 102197.1557 | RD35: 103219.1273 | RE35: 104251.3185 | RF35: 105293.8317 | RG35: 106346.77 | RH35: 107410.2377 | RI35: 108484.3401 | RJ35: 109569.1835 | RK35: 110664.8754 | RL35: 111771.5241 | RM35: 112889.2393 | RN35: 114018.1317 | RO35: 115158.3131 | RP35: 116309.8962 | RQ35: 117472.9952 | RR35: 118647.7251 | RS35: 119834.2024 | RT35: 121032.5444 | RU35: 122242.8698 | RV35: 123465.2985 | RW35: 124699.9515 | RX35: 125946.951 | RY35: 127206.4205 | RZ35: 128478.4847 | SA35: 129763.2696 | SB35: 131060.9023 | SC35: 132371.5113 | SD35: 133695.2264 | SE35: 135032.1787 | SF35: 136382.5005 | SG35: 137746.3255 | SH35: 139123.7887 | SI35: 140515.0266 | SJ35: 141920.1769 | SK35: 143339.3786
F36: 49.15748089 | G36: 54.2360557 | H36: 59.83931 | I36: 66.02144967 | J36: 72.8422807 | K36: 73.57070351 | L36: 74.30641054 | M36: 75.04947465 | N36: 75.79996939 | O36: 76.55796909 | P36: 77.32354878 | Q36: 78.09678427 | R36: 78.87775211 | S36: 79.66652963 | T36: 80.46319493 | U36: 81.26782688 | V36: 82.08050514 | W36: 82.9013102 | X36: 83.7303233 | Y36: 84.56762653 | Z36: 85.4133028 | AA36: 86.26743582 | AB36: 87.13011018 | AC36: 88.00141128 | AD36: 88.8814254 | AE36: 89.77023965 | AF36: 90.66794205 | AG36: 91.57462147 | AH36: 92.49036768 | AI36: 93.41527136 | AJ36: 94.34942407 | AK36: 95.29291831 | AL36: 96.2458475 | AM36: 97.20830597 | AN36: 98.18038903 | AO36: 99.16219292 | AP36: 100.1538149 | AQ36: 101.155353 | AR36: 102.1669065 | AS36: 103.1885756 | AT36: 104.2204614 | AU36: 105.262666 | AV36: 106.3152926 | AW36: 107.3784456 | AX36: 108.45223 | AY36: 109.5367523 | AZ36: 110.6321198 | BA36: 111.738441 | BB36: 112.8558254 | BC36: 113.9843837 | BD36: 115.1242275 | BE36: 116.2754698 | BF36: 117.4382245 | BG36: 118.6126067 | BH36: 119.7987328 | BI36: 120.9967201 | BJ36: 122.2066873 | BK36: 123.4287542 | BL36: 124.6630418 | BM36: 125.9096722 | BN36: 127.1687689 | BO36: 128.4404566 | BP36: 129.7248612 | BQ36: 131.0221098 | BR36: 132.3323309 | BS36: 133.6556542 | BT36: 134.9922107 | BU36: 136.3421328 | BV36: 137.7055541 | BW36: 139.0826097 | BX36: 140.4734358 | BY36: 141.8781701 | BZ36: 143.2969518 | CA36: 144.7299214 | CB36: 146.1772206 | CC36: 147.6389928 | CD36: 149.1153827 | CE36: 150.6065365 | CF36: 152.1126019 | CG36: 153.6337279 | CH36: 155.1700652 | CI36: 156.7217659 | CJ36: 158.2889835 | CK36: 159.8718733 | CL36: 161.4705921 | CM36: 163.085298 | CN36: 164.716151 | CO36: 166.3633125 | CP36: 168.0269456 | CQ36: 169.7072151 | CR36: 171.4042872 | CS36: 173.1183301 | CT36: 174.8495134 | CU36: 176.5980085 | CV36: 178.3639886 | CW36: 180.1476285 | CX36: 181.9491048 | CY36: 183.7685958 | CZ36: 185.6062818 | DA36: 187.4623446 | DB36: 189.3369681 | DC36: 191.2303377 | DD36: 193.1426411 | DE36: 195.0740675 | DF36: 197.0248082 | DG36: 198.9950563 | DH36: 200.9850068 | DI36: 202.9948569 | DJ36: 205.0248055 | DK36: 207.0750535 | DL36: 209.1458041 | DM36: 211.2372621 | DN36: 213.3496347 | DO36: 215.4831311 | DP36: 217.6379624 | DQ36: 219.814342 | DR36: 222.0124854 | DS36: 224.2326103 | DT36: 226.4749364 | DU36: 228.7396858 | DV36: 231.0270826 | DW36: 233.3373534 | DX36: 235.670727 | DY36: 238.0274343 | DZ36: 240.4077086 | EA36: 242.8117857 | EB36: 245.2399035 | EC36: 247.6923026 | ED36: 250.1692256 | EE36: 252.6709179 | EF36: 255.197627 | EG36: 257.7496033 | EH36: 260.3270993 | EI36: 262.9303703 | EJ36: 265.559674 | EK36: 268.2152708 | EL36: 270.8974235 | EM36: 273.6063977 | EN36: 276.3424617 | EO36: 279.1058863 | EP36: 281.8969452 | EQ36: 284.7159146 | ER36: 287.5630738 | ES36: 290.4387045 | ET36: 293.3430916 | EU36: 296.2765225 | EV36: 299.2392877 | EW36: 302.2316806 | EX36: 305.2539974 | EY36: 308.3065373 | EZ36: 311.3896027 | FA36: 314.5034987 | FB36: 317.6485337 | FC36: 320.8250191 | FD36: 324.0332693 | FE36: 327.273602 | FF36: 330.546338 | FG36: 333.8518014 | FH36: 337.1903194 | FI36: 340.5622226 | FJ36: 343.9678448 | FK36: 347.4075232 | FL36: 350.8815985 | FM36: 354.3904145 | FN36: 357.9343186 | FO36: 361.5136618 | FP36: 365.1287984 | FQ36: 368.7800864 | FR36: 372.4678873 | FS36: 376.1925661 | FT36: 379.9544918 | FU36: 383.7540367 | FV36: 387.5915771 | FW36: 391.4674928 | FX36: 395.3821678 | FY36: 399.3359894 | FZ36: 403.3293493 | GA36: 407.3626428 | GB36: 411.4362693 | GC36: 415.550632 | GD36: 419.7061383 | GE36: 423.9031997 | GF36: 428.1422317 | GG36: 432.423654 | GH36: 436.7478905 | GI36: 441.1153694 | GJ36: 445.5265231 | GK36: 449.9817883 | GL36: 454.4816062 | GM36: 459.0264223 | GN36: 463.6166865 | GO36: 468.2528534 | GP36: 472.9353819 | GQ36: 477.6647357 | GR36: 482.4413831 | GS36: 487.2657969 | GT36: 492.1384549 | GU36: 497.0598394 | GV36: 502.0304378 | GW36: 507.0507422 | GX36: 512.1212496 | GY36: 517.2424621 | GZ36: 522.4148867 | HA36: 527.6390356 | HB36: 532.915426 | HC36: 538.2445802 | HD36: 543.627026 | HE36: 549.0632963 | HF36: 554.5539293 | HG36: 560.0994685 | HH36: 565.7004632 | HI36: 571.3574679 | HJ36: 577.0710425 | HK36: 582.841753 | HL36: 588.6701705 | HM36: 594.5568722 | HN36: 600.5024409 | HO36: 606.5074653 | HP36: 612.57254 | HQ36: 618.6982654 | HR36: 624.885248 | HS36: 631.1341005 | HT36: 637.4454415 | HU36: 643.8198959 | HV36: 650.2580949 | HW36: 656.7606759 | HX36: 663.3282826 | HY36: 669.9615654 | HZ36: 676.6611811 | IA36: 683.4277929 | IB36: 690.2620708 | IC36: 697.1646915 | ID36: 704.1363385 | IE36: 711.1777018 | IF36: 718.2894789 | IG36: 725.4723736 | IH36: 732.7270974 | II36: 740.0543684 | IJ36: 747.454912 | IK36: 754.9294612 | IL36: 762.4787558 | IM36: 770.1035433 | IN36: 777.8045788 | IO36: 785.5826245 | IP36: 793.4384508 | IQ36: 801.3728353 | IR36: 809.3865637 | IS36: 817.4804293 | IT36: 825.6552336 | IU36: 833.9117859 | IV36: 842.2509038 | IW36: 850.6734128 | IX36: 859.1801469 | IY36: 867.7719484 | IZ36: 876.4496679 | JA36: 885.2141646 | JB36: 894.0663062 | JC36: 903.0069693 | JD36: 912.037039 | JE36: 921.1574094 | JF36: 930.3689835 | JG36: 939.6726733 | JH36: 949.0694 | JI36: 958.560094 | JJ36: 968.145695 | JK36: 977.8271519 | JL36: 987.6054234 | JM36: 997.4814777 | JN36: 1007.456292 | JO36: 1017.530855 | JP36: 1027.706164 | JQ36: 1037.983226 | JR36: 1048.363058 | JS36: 1058.846688 | JT36: 1069.435155 | JU36: 1080.129507 | JV36: 1090.930802 | JW36: 1101.84011 | JX36: 1112.858511 | JY36: 1123.987096 | JZ36: 1135.226967 | KA36: 1146.579237 | KB36: 1158.045029 | KC36: 1169.625479 | KD36: 1181.321734 | KE36: 1193.134952 | KF36: 1205.066301 | KG36: 1217.116964 | KH36: 1229.288134 | KI36: 1241.581015 | KJ36: 1253.996825 | KK36: 1266.536793 | KL36: 1279.202161 | KM36: 1291.994183 | KN36: 1304.914125 | KO36: 1317.963266 | KP36: 1331.142899 | KQ36: 1344.454328 | KR36: 1357.898871 | KS36: 1371.47786 | KT36: 1385.192638 | KU36: 1399.044565 | KV36: 1413.03501 | KW36: 1427.16536 | KX36: 1441.437014 | KY36: 1455.851384 | KZ36: 1470.409898 | LA36: 1485.113997 | LB36: 1499.965137 | LC36: 1514.964788 | LD36: 1530.114436 | LE36: 1545.415581 | LF36: 1560.869736 | LG36: 1576.478434 | LH36: 1592.243218 | LI36: 1608.16565 | LJ36: 1624.247307 | LK36: 1640.48978 | LL36: 1656.894678 | LM36: 1673.463624 | LN36: 1690.198261 | LO36: 1707.100243 | LP36: 1724.171246 | LQ36: 1741.412958 | LR36: 1758.827088 | LS36: 1776.415359 | LT36: 1794.179512 | LU36: 1812.121307 | LV36: 1830.24252 | LW36: 1848.544946 | LX36: 1867.030395 | LY36: 1885.700699 | LZ36: 1904.557706 | MA36: 1923.603283 | MB36: 1942.839316 | MC36: 1962.267709 | MD36: 1981.890386 | ME36: 2001.70929 | MF36: 2021.726383 | MG36: 2041.943647 | MH36: 2062.363083 | MI36: 2082.986714 | MJ36: 2103.816581 | MK36: 2124.854747 | ML36: 2146.103295 | MM36: 2167.564327 | MN36: 2189.239971 | MO36: 2211.13237 | MP36: 2233.243694 | MQ36: 2255.576131 | MR36: 2278.131892 | MS36: 2300.913211 | MT36: 2323.922343 | MU36: 2347.161567 | MV36: 2370.633183 | MW36: 2394.339514 | MX36: 2418.282909 | MY36: 2442.465739 | MZ36: 2466.890396 | NA36: 2491.5593 | NB36: 2516.474893 | NC36: 2541.639642 | ND36: 2567.056038 | NE36: 2592.726599 | NF36: 2618.653865 | NG36: 2644.840403 | NH36: 2671.288807 | NI36: 2698.001695 | NJ36: 2724.981712 | NK36: 2752.231529 | NL36: 2779.753845 | NM36: 2807.551383 | NN36: 2835.626897 | NO36: 2863.983166 | NP36: 2892.622998 | NQ36: 2921.549228 | NR36: 2950.76472 | NS36: 2980.272367 | NT36: 3010.075091 | NU36: 3040.175842 | NV36: 3070.5776 | NW36: 3101.283376 | NX36: 3132.29621 | NY36: 3163.619172 | NZ36: 3195.255364 | OA36: 3227.207917 | OB36: 3259.479997 | OC36: 3292.074797 | OD36: 3324.995544 | OE36: 3358.2455 | OF36: 3391.827955 | OG36: 3425.746234 | OH36: 3460.003697 | OI36: 3494.603734 | OJ36: 3529.549771 | OK36: 3564.845269 | OL36: 3600.493722 | OM36: 3636.498659 | ON36: 3672.863645 | OO36: 3709.592282 | OP36: 3746.688205 | OQ36: 3784.155087 | OR36: 3821.996637 | OS36: 3860.216604 | OT36: 3898.81877 | OU36: 3937.806958 | OV36: 3977.185027 | OW36: 4016.956877 | OX36: 4057.126446 | OY36: 4097.697711 | OZ36: 4138.674688 | PA36: 4180.061435 | PB36: 4221.862049 | PC36: 4264.08067 | PD36: 4306.721476 | PE36: 4349.788691 | PF36: 4393.286578 | PG36: 4437.219444 | PH36: 4481.591638 | PI36: 4526.407554 | PJ36: 4571.67163 | PK36: 4617.388346 | PL36: 4663.56223 | PM36: 4710.197852 | PN36: 4757.299831 | PO36: 4804.872829 | PP36: 4852.921557 | PQ36: 4901.450773 | PR36: 4950.46528 | PS36: 4999.969933 | PT36: 5049.969633 | PU36: 5100.469329 | PV36: 5151.474022 | PW36: 5202.988762 | PX36: 5255.01865 | PY36: 5307.568837 | PZ36: 5360.644525 | QA36: 5414.25097 | QB36: 5468.39348 | QC36: 5523.077415 | QD36: 5578.308189 | QE36: 5634.091271 | QF36: 5690.432183 | QG36: 5747.336505 | QH36: 5804.80987 | QI36: 5862.857969 | QJ36: 5921.486549 | QK36: 5980.701414 | QL36: 6040.508428 | QM36: 6100.913513 | QN36: 6161.922648 | QO36: 6223.541874 | QP36: 6285.777293 | QQ36: 6348.635066 | QR36: 6412.121417 | QS36: 6476.242631 | QT36: 6541.005057 | QU36: 6606.415108 | QV36: 6672.479259 | QW36: 6739.204051 | QX36: 6806.596092 | QY36: 6874.662053 | QZ36: 6943.408673 | RA36: 7012.84276 | RB36: 7082.971188 | RC36: 7153.800899 | RD36: 7225.338908 | RE36: 7297.592298 | RF36: 7370.568221 | RG36: 7444.273903 | RH36: 7518.716642 | RI36: 7593.903808 | RJ36: 7669.842846 | RK36: 7746.541275 | RL36: 7824.006687 | RM36: 7902.246754 | RN36: 7981.269222 | RO36: 8061.081914 | RP36: 8141.692733 | RQ36: 8223.109661 | RR36: 8305.340757 | RS36: 8388.394165 | RT36: 8472.278106 | RU36: 8557.000887 | RV36: 8642.570896 | RW36: 8728.996605 | RX36: 8816.286571 | RY36: 8904.449437 | RZ36: 8993.493931 | SA36: 9083.428871 | SB36: 9174.263159 | SC36: 9266.005791 | SD36: 9358.665849 | SE36: 9452.252507 | SF36: 9546.775033 | SG36: 9642.242783 | SH36: 9738.665211 | SI36: 9836.051863 | SJ36: 9934.412381 | SK36: 10033.75651
F37: 39.15748089 | G37: 44.1360557 | H37: 49.63831 | I37: 55.71843967 | J37: 62.4362406 | K37: 63.06060301 | L37: 63.69120904 | M37: 64.32812113 | N37: 64.97140234 | O37: 65.62111636 | P37: 66.27732752 | Q37: 66.9401008 | R37: 67.60950181 | S37: 68.28559683 | T37: 68.96845279 | U37: 69.65813732 | V37: 70.3547187 | W37: 71.05826588 | X37: 71.76884854 | Y37: 72.48653703 | Z37: 73.2114024 | AA37: 73.94351642 | AB37: 74.68295159 | AC37: 75.4297811 | AD37: 76.18407891 | AE37: 76.9459197 | AF37: 77.7153789 | AG37: 78.49253269 | AH37: 79.27745801 | AI37: 80.07023259 | AJ37: 80.87093492 | AK37: 81.67964427 | AL37: 82.49644071 | AM37: 83.32140512 | AN37: 84.15461917 | AO37: 84.99616536 | AP37: 85.84612702 | AQ37: 86.70458829 | AR37: 87.57163417 | AS37: 88.44735051 | AT37: 89.33182402 | AU37: 90.22514226 | AV37: 91.12739368 | AW37: 92.03866761 | AX37: 92.95905429 | AY37: 93.88864483 | AZ37: 94.82753128 | BA37: 95.77580659 | BB37: 96.73356466 | BC37: 97.70090031 | BD37: 98.67790931 | BE37: 99.6646884 | BF37: 100.6613353 | BG37: 101.6679486 | BH37: 102.6846281 | BI37: 103.7114744 | BJ37: 104.7485892 | BK37: 105.796075 | BL37: 106.8540358 | BM37: 107.9225762 | BN37: 109.0018019 | BO37: 110.0918199 | BP37: 111.1927381 | BQ37: 112.3046655 | BR37: 113.4277122 | BS37: 114.5619893 | BT37: 115.7076092 | BU37: 116.8646853 | BV37: 118.0333321 | BW37: 119.2136654 | BX37: 120.4058021 | BY37: 121.6098601 | BZ37: 122.8259587 | CA37: 124.0542183 | CB37: 125.2947605 | CC37: 126.5477081 | CD37: 127.8131852 | CE37: 129.091317 | CF37: 130.3822302 | CG37: 131.6860525 | CH37: 133.002913 | CI37: 134.3329422 | CJ37: 135.6762716 | CK37: 137.0330343 | CL37: 138.4033646 | CM37: 139.7873983 | CN37: 141.1852723 | CO37: 142.597125 | CP37: 144.0230962 | CQ37: 145.4633272 | CR37: 146.9179605 | CS37: 148.3871401 | CT37: 149.8710115 | CU37: 151.3697216 | CV37: 152.8834188 | CW37: 154.412253 | CX37: 155.9563755 | CY37: 157.5159393 | CZ37: 159.0910987 | DA37: 160.6820097 | DB37: 162.2888298 | DC37: 163.9117181 | DD37: 165.5508352 | DE37: 167.2063436 | DF37: 168.878407 | DG37: 170.5671911 | DH37: 172.272863 | DI37: 173.9955916 | DJ37: 175.7355476 | DK37: 177.492903 | DL37: 179.2678321 | DM37: 181.0605104 | DN37: 182.8711155 | DO37: 184.6998266 | DP37: 186.5468249 | DQ37: 188.4122932 | DR37: 190.2964161 | DS37: 192.1993803 | DT37: 194.1213741 | DU37: 196.0625878 | DV37: 198.0232137 | DW37: 200.0034458 | DX37: 202.0034803 | DY37: 204.0235151 | DZ37: 206.0637502 | EA37: 208.1243877 | EB37: 210.2056316 | EC37: 212.3076879 | ED37: 214.4307648 | EE37: 216.5750724 | EF37: 218.7408232 | EG37: 220.9282314 | EH37: 223.1375137 | EI37: 225.3688889 | EJ37: 227.6225777 | EK37: 229.8988035 | EL37: 232.1977916 | EM37: 234.5197695 | EN37: 236.8649672 | EO37: 239.2336168 | EP37: 241.625953 | EQ37: 244.0422125 | ER37: 246.4826347 | ES37: 248.947461 | ET37: 251.4369356 | EU37: 253.951305 | EV37: 256.490818 | EW37: 259.0557262 | EX37: 261.6462835 | EY37: 264.2627463 | EZ37: 266.9053738 | FA37: 269.5744275 | FB37: 272.2701718 | FC37: 274.9928735 | FD37: 277.7428022 | FE37: 280.5202302 | FF37: 283.3254326 | FG37: 286.1586869 | FH37: 289.0202737 | FI37: 291.9104765 | FJ37: 294.8295812 | FK37: 297.7778771 | FL37: 300.7556558 | FM37: 303.7632124 | FN37: 306.8008445 | FO37: 309.868853 | FP37: 312.9675415 | FQ37: 316.0972169 | FR37: 319.2581891 | FS37: 322.450771 | FT37: 325.6752787 | FU37: 328.9320315 | FV37: 332.2213518 | FW37: 335.5435653 | FX37: 338.8990009 | FY37: 342.287991 | FZ37: 345.7108709 | GA37: 349.1679796 | GB37: 352.6596594 | GC37: 356.186256 | GD37: 359.7481185 | GE37: 363.3455997 | GF37: 366.9790557 | GG37: 370.6488463 | GH37: 374.3553347 | GI37: 378.0988881 | GJ37: 381.879877 | GK37: 385.6986757 | GL37: 389.5556625 | GM37: 393.4512191 | GN37: 397.3857313 | GO37: 401.3595886 | GP37: 405.3731845 | GQ37: 409.4269163 | GR37: 413.5211855 | GS37: 417.6563974 | GT37: 421.8329613 | GU37: 426.0512909 | GV37: 430.3118039 | GW37: 434.6149219 | GX37: 438.9610711 | GY37: 443.3506818 | GZ37: 447.7841886 | HA37: 452.2620305 | HB37: 456.7846508 | HC37: 461.3524973 | HD37: 465.9660223 | HE37: 470.6256825 | HF37: 475.3319394 | HG37: 480.0852588 | HH37: 484.8861113 | HI37: 489.7349725 | HJ37: 494.6323222 | HK37: 499.5786454 | HL37: 504.5744319 | HM37: 509.6201762 | HN37: 514.7163779 | HO37: 519.8635417 | HP37: 525.0621771 | HQ37: 530.3127989 | HR37: 535.6159269 | HS37: 540.9720862 | HT37: 546.381807 | HU37: 551.8456251 | HV37: 557.3640813 | HW37: 562.9377222 | HX37: 568.5670994 | HY37: 574.2527704 | HZ37: 579.9952981 | IA37: 585.7952511 | IB37: 591.6532036 | IC37: 597.5697356 | ID37: 603.545433 | IE37: 609.5808873 | IF37: 615.6766962 | IG37: 621.8334631 | IH37: 628.0517978 | II37: 634.3323157 | IJ37: 640.6756389 | IK37: 647.0823953 | IL37: 653.5532192 | IM37: 660.0887514 | IN37: 666.6896389 | IO37: 673.3565353 | IP37: 680.0901007 | IQ37: 686.8910017 | IR37: 693.7599117 | IS37: 700.6975108 | IT37: 707.7044859 | IU37: 714.7815308 | IV37: 721.9293461 | IW37: 729.1486396 | IX37: 736.440126 | IY37: 743.8045272 | IZ37: 751.2425725 | JA37: 758.7549982 | JB37: 766.3425482 | JC37: 774.0059737 | JD37: 781.7460334 | JE37: 789.5634937 | JF37: 797.4591287 | JG37: 805.43372 | JH37: 813.4880572 | JI37: 821.6229377 | JJ37: 829.8391671 | JK37: 838.1375588 | JL37: 846.5189344 | JM37: 854.9841237 | JN37: 863.533965 | JO37: 872.1693046 | JP37: 880.8909977 | JQ37: 889.6999076 | JR37: 898.5969067 | JS37: 907.5828758 | JT37: 916.6587045 | JU37: 925.8252916 | JV37: 935.0835445 | JW37: 944.4343799 | JX37: 953.8787237 | JY37: 963.417511 | JZ37: 973.0516861 | KA37: 982.7822029 | KB37: 992.610025 | KC37: 1002.536125 | KD37: 1012.561486 | KE37: 1022.687101 | KF37: 1032.913972 | KG37: 1043.243112 | KH37: 1053.675543 | KI37: 1064.212299 | KJ37: 1074.854422 | KK37: 1085.602966 | KL37: 1096.458995 | KM37: 1107.423585 | KN37: 1118.497821 | KO37: 1129.6828 | KP37: 1140.979628 | KQ37: 1152.389424 | KR37: 1163.913318 | KS37: 1175.552451 | KT37: 1187.307976 | KU37: 1199.181055 | KV37: 1211.172866 | KW37: 1223.284595 | KX37: 1235.517441 | KY37: 1247.872615 | KZ37: 1260.351341 | LA37: 1272.954855 | LB37: 1285.684403 | LC37: 1298.541247 | LD37: 1311.52666 | LE37: 1324.641926 | LF37: 1337.888346 | LG37: 1351.267229 | LH37: 1364.779901 | LI37: 1378.4277 | LJ37: 1392.211977 | LK37: 1406.134097 | LL37: 1420.195438 | LM37: 1434.397392 | LN37: 1448.741366 | LO37: 1463.22878 | LP37: 1477.861068 | LQ37: 1492.639678 | LR37: 1507.566075 | LS37: 1522.641736 | LT37: 1537.868153 | LU37: 1553.246835 | LV37: 1568.779303 | LW37: 1584.467096 | LX37: 1600.311767 | LY37: 1616.314885 | LZ37: 1632.478034 | MA37: 1648.802814 | MB37: 1665.290842 | MC37: 1681.943751 | MD37: 1698.763188 | ME37: 1715.75082 | MF37: 1732.908328 | MG37: 1750.237412 | MH37: 1767.739786 | MI37: 1785.417183 | MJ37: 1803.271355 | MK37: 1821.304069 | ML37: 1839.51711 | MM37: 1857.912281 | MN37: 1876.491403 | MO37: 1895.256318 | MP37: 1914.208881 | MQ37: 1933.350969 | MR37: 1952.684479 | MS37: 1972.211324 | MT37: 1991.933437 | MU37: 2011.852772 | MV37: 2031.971299 | MW37: 2052.291012 | MX37: 2072.813922 | MY37: 2093.542062 | MZ37: 2114.477482 | NA37: 2135.622257 | NB37: 2156.97848 | NC37: 2178.548264 | ND37: 2200.333747 | NE37: 2222.337085 | NF37: 2244.560455 | NG37: 2267.00606 | NH37: 2289.676121 | NI37: 2312.572882 | NJ37: 2335.698611 | NK37: 2359.055597 | NL37: 2382.646153 | NM37: 2406.472614 | NN37: 2430.53734 | NO37: 2454.842714 | NP37: 2479.391141 | NQ37: 2504.185052 | NR37: 2529.226903 | NS37: 2554.519172 | NT37: 2580.064364 | NU37: 2605.865007 | NV37: 2631.923657 | NW37: 2658.242894 | NX37: 2684.825323 | NY37: 2711.673576 | NZ37: 2738.790312 | OA37: 2766.178215 | OB37: 2793.839997 | OC37: 2821.778397 | OD37: 2849.996181 | OE37: 2878.496143 | OF37: 2907.281104 | OG37: 2936.353915 | OH37: 2965.717454 | OI37: 2995.374629 | OJ37: 3025.328375 | OK37: 3055.581659 | OL37: 3086.137476 | OM37: 3116.99885 | ON37: 3148.168839 | OO37: 3179.650527 | OP37: 3211.447032 | OQ37: 3243.561503 | OR37: 3275.997118 | OS37: 3308.757089 | OT37: 3341.84466 | OU37: 3375.263107 | OV37: 3409.015738 | OW37: 3443.105895 | OX37: 3477.536954 | OY37: 3512.312323 | OZ37: 3547.435447 | PA37: 3582.909801 | PB37: 3618.738899 | PC37: 3654.926288 | PD37: 3691.475551 | PE37: 3728.390307 | PF37: 3765.67421 | PG37: 3803.330952 | PH37: 3841.364261 | PI37: 3879.777904 | PJ37: 3918.575683 | PK37: 3957.76144 | PL37: 3997.339054 | PM37: 4037.312445 | PN37: 4077.685569 | PO37: 4118.462425 | PP37: 4159.647049 | PQ37: 4201.24352 | PR37: 4243.255955 | PS37: 4285.688514 | PT37: 4328.545399 | PU37: 4371.830853 | PV37: 4415.549162 | PW37: 4459.704654 | PX37: 4504.3017 | PY37: 4549.344717 | PZ37: 4594.838164 | QA37: 4640.786546 | QB37: 4687.194411 | QC37: 4734.066355 | QD37: 4781.407019 | QE37: 4829.221089 | QF37: 4877.5133 | QG37: 4926.288433 | QH37: 4975.551317 | QI37: 5025.306831 | QJ37: 5075.559899 | QK37: 5126.315498 | QL37: 5177.578653 | QM37: 5229.354439 | QN37: 5281.647984 | QO37: 5334.464464 | QP37: 5387.809108 | QQ37: 5441.687199 | QR37: 5496.104071 | QS37: 5551.065112 | QT37: 5606.575763 | QU37: 5662.641521 | QV37: 5719.267936 | QW37: 5776.460615 | QX37: 5834.225222 | QY37: 5892.567474 | QZ37: 5951.493149 | RA37: 6011.00808 | RB37: 6071.118161 | RC37: 6131.829342 | RD37: 6193.147636 | RE37: 6255.079112 | RF37: 6317.629903 | RG37: 6380.806202 | RH37: 6444.614264 | RI37: 6509.060407 | RJ37: 6574.151011 | RK37: 6639.892521 | RL37: 6706.291446 | RM37: 6773.354361 | RN37: 6841.087904 | RO37: 6909.498784 | RP37: 6978.593771 | RQ37: 7048.379709 | RR37: 7118.863506 | RS37: 7190.052141 | RT37: 7261.952663 | RU37: 7334.572189 | RV37: 7407.917911 | RW37: 7481.99709 | RX37: 7556.817061 | RY37: 7632.385232 | RZ37: 7708.709084 | SA37: 7785.796175 | SB37: 7863.654137 | SC37: 7942.290678 | SD37: 8021.713585 | SE37: 8101.930721 | SF37: 8182.950028 | SG37: 8264.779528 | SH37: 8347.427323 | SI37: 8430.901597 | SJ37: 8515.210613 | SK37: 8600.362719
F38: 1010 | G38: 1020.1 | H38: 1030.301 | I38: 1040.60401 | J38: 1051.01005 | K38: 1061.520151 | L38: 1072.135352 | M38: 1082.856706 | N38: 1093.685273 | O38: 1104.622125 | P38: 1115.668347 | Q38: 1126.82503 | R38: 1138.09328 | S38: 1149.474213 | T38: 1160.968955 | U38: 1172.578645 | V38: 1184.304431 | W38: 1196.147476 | X38: 1208.10895 | Y38: 1220.19004 | Z38: 1232.39194 | AA38: 1244.71586 | AB38: 1257.163018 | AC38: 1269.734649 | AD38: 1282.431995 | AE38: 1295.256315 | AF38: 1308.208878 | AG38: 1321.290967 | AH38: 1334.503877 | AI38: 1347.848915 | AJ38: 1361.327404 | AK38: 1374.940679 | AL38: 1388.690085 | AM38: 1402.576986 | AN38: 1416.602756 | AO38: 1430.768784 | AP38: 1445.076471 | AQ38: 1459.527236 | AR38: 1474.122509 | AS38: 1488.863734 | AT38: 1503.752371 | AU38: 1518.789895 | AV38: 1533.977794 | AW38: 1549.317572 | AX38: 1564.810747 | AY38: 1580.458855 | AZ38: 1596.263443 | BA38: 1612.226078 | BB38: 1628.348338 | BC38: 1644.631822 | BD38: 1661.07814 | BE38: 1677.688921 | BF38: 1694.465811 | BG38: 1711.410469 | BH38: 1728.524573 | BI38: 1745.809819 | BJ38: 1763.267917 | BK38: 1780.900597 | BL38: 1798.709603 | BM38: 1816.696699 | BN38: 1834.863666 | BO38: 1853.212302 | BP38: 1871.744425 | BQ38: 1890.461869 | BR38: 1909.366488 | BS38: 1928.460153 | BT38: 1947.744755 | BU38: 1967.222202 | BV38: 1986.894424 | BW38: 2006.763368 | BX38: 2026.831002 | BY38: 2047.099312 | BZ38: 2067.570305 | CA38: 2088.246008 | CB38: 2109.128468 | CC38: 2130.219753 | CD38: 2151.521951 | CE38: 2173.03717 | CF38: 2194.767542 | CG38: 2216.715217 | CH38: 2238.882369 | CI38: 2261.271193 | CJ38: 2283.883905 | CK38: 2306.722744 | CL38: 2329.789971 | CM38: 2353.087871 | CN38: 2376.61875 | CO38: 2400.384937 | CP38: 2424.388787 | CQ38: 2448.632675 | CR38: 2473.119001 | CS38: 2497.850191 | CT38: 2522.828693 | CU38: 2548.05698 | CV38: 2573.53755 | CW38: 2599.272926 | CX38: 2625.265655 | CY38: 2651.518311 | CZ38: 2678.033494 | DA38: 2704.813829 | DB38: 2731.861968 | DC38: 2759.180587 | DD38: 2786.772393 | DE38: 2814.640117 | DF38: 2842.786518 | DG38: 2871.214384 | DH38: 2899.926527 | DI38: 2928.925793 | DJ38: 2958.215051 | DK38: 2987.797201 | DL38: 3017.675173 | DM38: 3047.851925 | DN38: 3078.330444 | DO38: 3109.113749 | DP38: 3140.204886 | DQ38: 3171.606935 | DR38: 3203.323004 | DS38: 3235.356234 | DT38: 3267.709797 | DU38: 3300.386895 | DV38: 3333.390764 | DW38: 3366.724671 | DX38: 3400.391918 | DY38: 3434.395837 | DZ38: 3468.739795 | EA38: 3503.427193 | EB38: 3538.461465 | EC38: 3573.84608 | ED38: 3609.584541 | EE38: 3645.680386 | EF38: 3682.13719 | EG38: 3718.958562 | EH38: 3756.148148 | EI38: 3793.709629 | EJ38: 3831.646725 | EK38: 3869.963193 | EL38: 3908.662824 | EM38: 3947.749453 | EN38: 3987.226947 | EO38: 4027.099217 | EP38: 4067.370209 | EQ38: 4108.043911 | ER38: 4149.12435 | ES38: 4190.615594 | ET38: 4232.52175 | EU38: 4274.846967 | EV38: 4317.595437 | EW38: 4360.771391 | EX38: 4404.379105 | EY38: 4448.422896 | EZ38: 4492.907125 | FA38: 4537.836196 | FB38: 4583.214558 | FC38: 4629.046704 | FD38: 4675.337171 | FE38: 4722.090543 | FF38: 4769.311448 | FG38: 4817.004562 | FH38: 4865.174608 | FI38: 4913.826354 | FJ38: 4962.964618 | FK38: 5012.594264 | FL38: 5062.720206 | FM38: 5113.347409 | FN38: 5164.480883 | FO38: 5216.125691 | FP38: 5268.286948 | FQ38: 5320.969818 | FR38: 5374.179516 | FS38: 5427.921311 | FT38: 5482.200524 | FU38: 5537.02253 | FV38: 5592.392755 | FW38: 5648.316682 | FX38: 5704.799849 | FY38: 5761.847848 | FZ38: 5819.466326 | GA38: 5877.660989 | GB38: 5936.437599 | GC38: 5995.801975 | GD38: 6055.759995 | GE38: 6116.317595 | GF38: 6177.480771 | GG38: 6239.255579 | GH38: 6301.648135 | GI38: 6364.664616 | GJ38: 6428.311262 | GK38: 6492.594375 | GL38: 6557.520318 | GM38: 6623.095522 | GN38: 6689.326477 | GO38: 6756.219742 | GP38: 6823.781939 | GQ38: 6892.019758 | GR38: 6960.939956 | GS38: 7030.549355 | GT38: 7100.854849 | GU38: 7171.863398 | GV38: 7243.582032 | GW38: 7316.017852 | GX38: 7389.17803 | GY38: 7463.069811 | GZ38: 7537.700509 | HA38: 7613.077514 | HB38: 7689.208289 | HC38: 7766.100372 | HD38: 7843.761376 | HE38: 7922.198989 | HF38: 8001.420979 | HG38: 8081.435189 | HH38: 8162.249541 | HI38: 8243.872036 | HJ38: 8326.310757 | HK38: 8409.573864 | HL38: 8493.669603 | HM38: 8578.606299 | HN38: 8664.392362 | HO38: 8751.036286 | HP38: 8838.546648 | HQ38: 8926.932115 | HR38: 9016.201436 | HS38: 9106.36345 | HT38: 9197.427085 | HU38: 9289.401356 | HV38: 9382.295369 | HW38: 9476.118323 | HX38: 9570.879506 | HY38: 9666.588301 | HZ38: 9763.254184 | IA38: 9860.886726 | IB38: 9959.495593 | IC38: 10059.09055 | ID38: 10159.68145 | IE38: 10261.27827 | IF38: 10363.89105 | IG38: 10467.52996 | IH38: 10572.20526 | II38: 10677.92731 | IJ38: 10784.70659 | IK38: 10892.55365 | IL38: 11001.47919 | IM38: 11111.49398 | IN38: 11222.60892 | IO38: 11334.83501 | IP38: 11448.18336 | IQ38: 11562.6652 | IR38: 11678.29185 | IS38: 11795.07477 | IT38: 11913.02551 | IU38: 12032.15577 | IV38: 12152.47733 | IW38: 12274.0021 | IX38: 12396.74212 | IY38: 12520.70954 | IZ38: 12645.91664 | JA38: 12772.3758 | JB38: 12900.09956 | JC38: 13029.10056 | JD38: 13159.39156 | JE38: 13290.98548 | JF38: 13423.89533 | JG38: 13558.13429 | JH38: 13693.71563 | JI38: 13830.65279 | JJ38: 13968.95931 | JK38: 14108.64891 | JL38: 14249.7354 | JM38: 14392.23275 | JN38: 14536.15508 | JO38: 14681.51663 | JP38: 14828.33179 | JQ38: 14976.61511 | JR38: 15126.38126 | JS38: 15277.64508 | JT38: 15430.42153 | JU38: 15584.72574 | JV38: 15740.573 | JW38: 15897.97873 | JX38: 16056.95852 | JY38: 16217.5281 | JZ38: 16379.70338 | KA38: 16543.50042 | KB38: 16708.93542 | KC38: 16876.02477 | KD38: 17044.78502 | KE38: 17215.23287 | KF38: 17387.3852 | KG38: 17561.25905 | KH38: 17736.87164 | KI38: 17914.24036 | KJ38: 18093.38276 | KK38: 18274.31659 | KL38: 18457.05976 | KM38: 18641.63036 | KN38: 18828.04666 | KO38: 19016.32713 | KP38: 19206.4904 | KQ38: 19398.5553 | KR38: 19592.54085 | KS38: 19788.46626 | KT38: 19986.35092 | KU38: 20186.21443 | KV38: 20388.07658 | KW38: 20591.95734 | KX38: 20797.87692 | KY38: 21005.85569 | KZ38: 21215.91424 | LA38: 21428.07339 | LB38: 21642.35412 | LC38: 21858.77766 | LD38: 22077.36544 | LE38: 22298.13909 | LF38: 22521.12048 | LG38: 22746.33169 | LH38: 22973.795 | LI38: 23203.53295 | LJ38: 23435.56828 | LK38: 23669.92397 | LL38: 23906.62321 | LM38: 24145.68944 | LN38: 24387.14633 | LO38: 24631.0178 | LP38: 24877.32797 | LQ38: 25126.10125 | LR38: 25377.36227 | LS38: 25631.13589 | LT38: 25887.44725 | LU38: 26146.32172 | LV38: 26407.78494 | LW38: 26671.86279 | LX38: 26938.58142 | LY38: 27207.96723 | LZ38: 27480.0469 | MA38: 27754.84737 | MB38: 28032.39584 | MC38: 28312.7198 | MD38: 28595.847 | ME38: 28881.80547 | MF38: 29170.62353 | MG38: 29462.32976 | MH38: 29756.95306 | MI38: 30054.52259 | MJ38: 30355.06781 | MK38: 30658.61849 | ML38: 30965.20468 | MM38: 31274.85672 | MN38: 31587.60529 | MO38: 31903.48134 | MP38: 32222.51616 | MQ38: 32544.74132 | MR38: 32870.18873 | MS38: 33198.89062 | MT38: 33530.87953 | MU38: 33866.18832 | MV38: 34204.85021 | MW38: 34546.89871 | MX38: 34892.36769 | MY38: 35241.29137 | MZ38: 35593.70428 | NA38: 35949.64133 | NB38: 36309.13774 | NC38: 36672.22912 | ND38: 37038.95141 | NE38: 37409.34092 | NF38: 37783.43433 | NG38: 38161.26868 | NH38: 38542.88136 | NI38: 38928.31018 | NJ38: 39317.59328 | NK38: 39710.76921 | NL38: 40107.8769 | NM38: 40508.95567 | NN38: 40914.04523 | NO38: 41323.18568 | NP38: 41736.41754 | NQ38: 42153.78171 | NR38: 42575.31953 | NS38: 43001.07273 | NT38: 43431.08345 | NU38: 43865.39429 | NV38: 44304.04823 | NW38: 44747.08871 | NX38: 45194.5596 | NY38: 45646.5052 | NZ38: 46102.97025 | OA38: 46563.99995 | OB38: 47029.63995 | OC38: 47499.93635 | OD38: 47974.93571 | OE38: 48454.68507 | OF38: 48939.23192 | OG38: 49428.62424 | OH38: 49922.91048 | OI38: 50422.13959 | OJ38: 50926.36098 | OK38: 51435.62459 | OL38: 51949.98084 | OM38: 52469.48065 | ON38: 52994.17545 | OO38: 53524.11721 | OP38: 54059.35838 | OQ38: 54599.95196 | OR38: 55145.95148 | OS38: 55697.411 | OT38: 56254.38511 | OU38: 56816.92896 | OV38: 57385.09825 | OW38: 57958.94923 | OX38: 58538.53872 | OY38: 59123.92411 | OZ38: 59715.16335 | PA38: 60312.31499 | PB38: 60915.43814 | PC38: 61524.59252 | PD38: 62139.83844 | PE38: 62761.23683 | PF38: 63388.8492 | PG38: 64022.73769 | PH38: 64662.96506 | PI38: 65309.59471 | PJ38: 65962.69066 | PK38: 66622.31757 | PL38: 67288.54074 | PM38: 67961.42615 | PN38: 68641.04041 | PO38: 69327.45082 | PP38: 70020.72533 | PQ38: 70720.93258 | PR38: 71428.1419 | PS38: 72142.42332 | PT38: 72863.84756 | PU38: 73592.48603 | PV38: 74328.41089 | PW38: 75071.695 | PX38: 75822.41195 | PY38: 76580.63607 | PZ38: 77346.44243 | QA38: 78119.90686 | QB38: 78901.10592 | QC38: 79690.11698 | QD38: 80487.01815 | QE38: 81291.88834 | QF38: 82104.80722 | QG38: 82925.85529 | QH38: 83755.11384 | QI38: 84592.66498 | QJ38: 85438.59163 | QK38: 86292.97755 | QL38: 87155.90732 | QM38: 88027.4664 | QN38: 88907.74106 | QO38: 89796.81847 | QP38: 90694.78666 | QQ38: 91601.73452 | QR38: 92517.75187 | QS38: 93442.92939 | QT38: 94377.35868 | QU38: 95321.13227 | QV38: 96274.34359 | QW38: 97237.08703 | QX38: 98209.4579 | QY38: 99191.55248 | QZ38: 100183.468 | RA38: 101185.3027 | RB38: 102197.1557 | RC38: 103219.1273 | RD38: 104251.3185 | RE38: 105293.8317 | RF38: 106346.77 | RG38: 107410.2377 | RH38: 108484.3401 | RI38: 109569.1835 | RJ38: 110664.8754 | RK38: 111771.5241 | RL38: 112889.2393 | RM38: 114018.1317 | RN38: 115158.3131 | RO38: 116309.8962 | RP38: 117472.9952 | RQ38: 118647.7251 | RR38: 119834.2024 | RS38: 121032.5444 | RT38: 122242.8698 | RU38: 123465.2985 | RV38: 124699.9515 | RW38: 125946.951 | RX38: 127206.4205 | RY38: 128478.4847 | RZ38: 129763.2696 | SA38: 131060.9023 | SB38: 132371.5113 | SC38: 133695.2264 | SD38: 135032.1787 | SE38: 136382.5005 | SF38: 137746.3255 | SG38: 139123.7887 | SH38: 140515.0266 | SI38: 141920.1769 | SJ38: 143339.3786 | SK38: 144772.7724

Sheet Portfolio
C2: Historic Period | H2: 2 | I2: 10 | J2: 15 | K2: 30
C3: Historic Growth | H3: 0.5 | I3: 0.3 | J3: 0.2 | K3: 0.05
C5: Future Period | G5: 0 | H5: 1 | I5: 10 | J5: 15 | K5: 20
C6: Projected Growth | H6: 0.03 | I6: 0.03 | J6: 0.03 | K6: 0.03
C8: Lifetime of Investment | E8: Years | F8: 20
C9: Historic Inflation Rate | E9: % | F9: 0.04
C10: Future Inflation Rate | E10: % | F10: 0.02
C12: Price per Unit | E12: USD/Unit
C13: Cost per Unit | E13: USD/Unit
C14: Capital Expenditure per Unit
C16: Straight Line Depreciation Flag | E16: Flag
C17: Write-Off
C19: Valuation
D20: WACC
D21: Terminal Growth
B24: Existing | G24: 1 | H24: 2 | I24: 3 | J24: 4 | K24: 5 | L24: 6 | M24: 7 | N24: 8 | O24: 9 | P24: 10 | Q24: 11 | R24: 12 | S24: 13 | T24: 14 | U24: 15 | V24: 16 | W24: 17 | X24: 18 | Y24: 19 | Z24: 20 | AA24: 21 | AB24: 22 | AC24: 23 | AD24: 24 | AE24: 25 | AF24: 26 | AG24: 27 | AH24: 28 | AI24: 29 | AJ24: 30
C25: Asset Balance | H25: =interpolate_look_up(H24,2:2,3:3) -> 0.5 | I25: =interpolate_look_up(I24,2:2,3:3) -> 0.469071353 | J25: =interpolate_look_up(J24,2:2,3:3) -> 0.4400558684 | K25: =interpolate_look_up(K24,2:2,3:3) -> 0.4128352032 | L25: =interpolate_look_up(L24,2:2,3:3) -> 0.3872983346 | M25: =interpolate_look_up(M24,2:2,3:3) -> 0.3633411077 | N25: =interpolate_look_up(N24,2:2,3:3) -> 0.3408658099 | O25: =interpolate_look_up(O24,2:2,3:3) -> 0.3197807733 | P25: =interpolate_look_up(P24,2:2,3:3) -> 0.3 | Q25: =interpolate_look_up(Q24,2:2,3:3) -> 0.2766323734 | R25: =interpolate_look_up(R24,2:2,3:3) -> 0.2550849001 | S25: =interpolate_look_up(S24,2:2,3:3) -> 0.2352158045 | T25: =interpolate_look_up(T24,2:2,3:3) -> 0.2168943542 | U25: =interpolate_look_up(U24,2:2,3:3) -> 0.2 | V25: =interpolate_look_up(V24,2:2,3:3) -> 0.1823444977 | W25: =interpolate_look_up(W24,2:2,3:3) -> 0.1662475792 | X25: =interpolate_look_up(X24,2:2,3:3) -> 0.1515716567 | Y25: =interpolate_look_up(Y24,2:2,3:3) -> 0.138191288 | Z25: =interpolate_look_up(Z24,2:2,3:3) -> 0.125992105 | AA25: =interpolate_look_up(AA24,2:2,3:3) -> 0.1148698355 | AB25: =interpolate_look_up(AB24,2:2,3:3) -> 0.1047294123 | AC25: =interpolate_look_up(AC24,2:2,3:3) -> 0.09548416039 | AD25: =interpolate_look_up(AD24,2:2,3:3) -> 0.08705505633 | AE25: =interpolate_look_up(AE24,2:2,3:3) -> 0.0793700526 | AF25: =interpolate_look_up(AF24,2:2,3:3) -> 0.07236346187 | AG25: =interpolate_look_up(AG24,2:2,3:3) -> 0.06597539554 | AH25: =interpolate_look_up(AH24,2:2,3:3) -> 0.0601512518 | AI25: =interpolate_look_up(AI24,2:2,3:3) -> 0.05484124898 | AJ25: =interpolate_look_up(AJ24,2:2,3:3) -> 0.05
D26: Historic Units | G26: 0 | H26: 10 | I26: =H26*(1+I25) -> 14.69071353 | J26: =I26*(1+J25) -> 21.15544823 | K26: 29.889162 | L26: 41.46518466 | M26: 56.53119079 | N26: 75.80074092 | O26: 100.0403605 | P26: 130.0524686 | Q26: 166.0291917 | R26: 208.3807315 | S26: 257.3951728 | T26: 313.2227326 | U26: 375.8672792 | V26: 444.4046094 | W26: 518.2857999 | X26: 596.8432372 | Y26: 679.3217729 | Z26: 764.910953 | AA26: 852.7761484 | AB26: 942.0868932 | AC26: 1032.041269 | AD26: 1121.88568 | AE26: 1210.929806 | AF26: 1298.556878 | AG26: 1384.229682 | AH26: 1467.49283 | AI26: 1547.97197 | AJ26: 1625.370568
C28: Starting Units | G28: =AJ26 -> 1625.370568
G30: 0 | H30: 1 | I30: 2 | J30: 3 | K30: 4 | L30: 5 | M30: 6 | N30: 7 | O30: 8 | P30: 9 | Q30: 10 | R30: 11 | S30: 12 | T30: 13 | U30: 14 | V30: 15
D31: Growth Rate | G31: =LOOKUP(G30,5:5,6:6) -> 0 | H31: =LOOKUP(H30,5:5,6:6) -> 0.03 | I31: =LOOKUP(I30,5:5,6:6) -> 0.03 | J31: 0.03 | K31: 0.03 | L31: 0.03 | M31: 0.03 | N31: 0.03 | O31: 0.03 | P31: 0.03 | Q31: 0.03 | R31: 0.03 | S31: 0.03 | T31: 0.03 | U31: 0.03 | V31: 0.03
D32: Real Units | G32: =G28 -> 1625.370568 | H32: =G32*(1+H31) -> 1674.131685 | I32: =H32*(1+I31) -> 1724.355636 | J32: 1776.086305 | K32: 1829.368894 | L32: 1884.249961 | M32: 1940.77746 | N32: 1999.000784 | O32: 2058.970807 | P32: 2120.739931 | Q32: 2184.362129 | R32: 2249.892993 | S32: 2317.389783 | T32: 2386.911476 | U32: 2458.518821 | V32: 2532.274385
D33: Add: Retired Units Replaced
D34: Total Units | G34: =G32+G33 -> 1625.370568 | H34: =H32+H33 -> 1674.131685 | I34: 1724.355636 | J34: 1776.086305 | K34: 1829.368894 | L34: 1884.249961 | M34: 1940.77746 | N34: 1999.000784 | O34: 2058.970807 | P34: 2120.739931 | Q34: 2184.362129 | R34: 2249.892993 | S34: 2317.389783 | T34: 2386.911476 | U34: 2458.518821 | V34: 2532.274385
D36: New Investment
D38: Capital Expenditue/Unit
